Organisation Name (A),Department (B),Service Cat Label (C ),Purpose of Spend (D),Expenditure CIPFA Sub Group (E),Supplier (F),Supplier Reference (G),Pay Date (H),Transaction Number (I),Net Amount (J),Grant to VCSE? (K),Charity Number (L),Card Transaction (M),Irrecoverable VAT (N)
Pendle Borough Council,Operational Services,Transport Related Expense,Tprt : Repairs : General,3105,FST CONSUMABLES LIMITED,A0000004,22/02/2024,OPS0339565,109.01,N,,N,N
Pendle Borough Council,Operational Services,Transport Related Expense,Tprt : Repairs : General,3105,BALMERS GM LIMITED,A0000198,08/02/2024,OPS0339324,462.65,N,,N,N
Pendle Borough Council,Operational Services,Transport Related Expense,Tprt : Repairs : General,3105,BALMERS GM LIMITED,A0000198,08/02/2024,OPS4006794,-12.4,N,,N,N
Pendle Borough Council,Operational Services,Transport Related Expense,Tprt : Repairs : General,3105,BALMERS GM LIMITED,A0000198,08/02/2024,OPS0339321,60.36,N,,N,N
Pendle Borough Council,Operational Services,Transport Related Expense,Tprt : Repairs : General,3105,BALMERS GM LIMITED,A0000198,08/02/2024,OPS0339324,26.06,N,,N,N
Pendle Borough Council,Operational Services,Transport Related Expense,Tprt : Repairs : General,3105,BALMERS GM LIMITED,A0000198,01/02/2024,OPS0339156,253.6,N,,N,N
Pendle Borough Council,Operational Services,Supplies and Services,Expenditure : Materials,0002,BARNES JB LIMITED,A0000202,22/02/2024,OPS0339578,82.58,N,,N,N
Pendle Borough Council,Operational Services,Premises Related Expense,Bldgs : R & M : Day To Day,2001,BARNES JB LIMITED,A0000202,08/02/2024,OPS0339265,26.38,N,,N,N
Pendle Borough Council,Operational Services,Premises Related Expense,Grounds : R & M : Day to Day : Routine,2101,BARNES JB LIMITED,A0000202,22/02/2024,OPS0339586,36.67,N,,N,N
Pendle Borough Council,Operational Services,Premises Related Expense,Grounds : R & M : Day to Day : Routine,2101,BARNES JB LIMITED,A0000202,01/02/2024,OPS0339140,26.18,N,,N,N
Pendle Borough Council,Operational Services,Supplies and Services,Sub-Contractors,4007,BARNES JB LIMITED,A0000202,22/02/2024,OPS0339558,171.54,N,,N,N
Pendle Borough Council,"Planning, Building Control & Regulatory Services",Agency Staff,Emp : Agency Wages,1004,BLACKBURN/DARWEN BOROUGH COUNCIL,A0000381,08/02/2024,PBC0339235,1503.66,N,,N,N
Pendle Borough Council,"Planning, Building Control & Regulatory Services",Supplies and Services,Consultants Fees,4401,BLACKBURN/DARWEN BOROUGH COUNCIL,A0000381,22/02/2024,PBC0339450,15000,N,,N,N
Pendle Borough Council,Operational Services,Transport Related Expense,Hire of Plant,3502,BOC GASES LTD,A0000386,15/02/2024,OPS0339417,27.35,N,,N,N
Pendle Borough Council,Operational Services,Premises Related Expense,Grounds : R & M : Day to Day : Routine,2101,CB EXCAVATORS LTD,A0000396,29/02/2024,OPS0339763,908,N,,N,N
Pendle Borough Council,Operational Services,Premises Related Expense,Grounds : R & M : Day to Day : Routine,2101,CB EXCAVATORS LTD,A0000396,29/02/2024,OPS0339763,500,N,,N,N
Pendle Borough Council,Operational Services,Premises Related Expense,Grounds : R & M : Day to Day : Routine,2101,CB EXCAVATORS LTD,A0000396,29/02/2024,OPS0339763,858,N,,N,N
Pendle Borough Council,Operational Services,Premises Related Expense,Grounds : R & M : Day to Day : Routine,2101,CB EXCAVATORS LTD,A0000396,29/02/2024,OPS0339763,1924,N,,N,N
Pendle Borough Council,Operational Services,Premises Related Expense,Bldgs : Vandalism Repairs,2005,BARROWFORD SAFE & LOCK SERV LT,A0000458,08/02/2024,OPS0339337,40.3,N,,N,N
Pendle Borough Council,Operational Services,Premises Related Expense,Grounds : R & M : Day to Day : Routine,2101,BARROWFORD SAFE & LOCK SERV LT,A0000458,08/02/2024,OPS0339337,113.42,N,,N,N
Pendle Borough Council,Economic Growth,Supplies and Services,Other Expenses,4705,BARNOLDSWICK TOWN COUNCIL,A0000467,22/02/2024,ECO0339613,10880.41,N,,N,N
Pendle Borough Council,Economic Growth,Supplies and Services,Other Expenses,4705,BARNOLDSWICK TOWN COUNCIL,A0000467,22/02/2024,ECO0339613,4140.94,N,,N,N
Pendle Borough Council,Economic Growth,Supplies and Services,Grant Funding,4737,BARNOLDSWICK TOWN COUNCIL,A0000467,29/02/2024,ECO0339749,3387.29,N,,N,N
Pendle Borough Council,Property Services,Premises Related Expense,Bldgs : R & M : Day To Day,2001,BARROWFORD SAFE & LOCK & BB LOCKSMITHS,A0000510,22/02/2024,EST0339643,615.68,N,,N,N
Pendle Borough Council,Housing & Environmental Health,Premises Related Expense,Bldgs : R & M : Abnormal,2002,MARTIN COLLINS JOINERY & GLAZING,A0000623,15/02/2024,HEH0339397,72,N,,N,N
Pendle Borough Council,"Planning, Building Control & Regulatory Services",Supplies and Services,Other Expenses,4705,MARTIN COLLINS JOINERY & GLAZING,A0000623,15/02/2024,PBC0339451,78,N,,N,N
Pendle Borough Council,Housing & Environmental Health,Transfer Payments,Storage & Homelessness prevention,6104,CAVALIER TAXIS,A0000638,15/02/2024,HEH0339364,1429.5,N,,N,N
Pendle Borough Council,Operational Services,Premises Related Expense,Bldgs : R & M : Day To Day,2001,DEWHURST DECORATING SUPPLIES,A0000879,08/02/2024,OPS0339340,292.65,N,,N,N
Pendle Borough Council,Property Services,Premises Related Expense,Bldgs : R & M : Day To Day,2001,J DRIVER LTD,A0000884,15/02/2024,EST0339486,1138.18,N,,N,N
Pendle Borough Council,Property Services,Premises Related Expense,Bldgs : R & M : Day To Day,2001,J DRIVER LTD,A0000884,29/02/2024,EST0339776,168,N,,N,N
Pendle Borough Council,Property Services,Premises Related Expense,Bldgs : R & M : Day To Day,2001,J DRIVER LTD,A0000884,15/02/2024,EST0339486,1334.5,N,,N,N
Pendle Borough Council,Property Services,Premises Related Expense,Bldgs : R & M : Day To Day,2001,J DRIVER LTD,A0000884,29/02/2024,EST0339776,116.85,N,,N,N
Pendle Borough Council,Property Services,Premises Related Expense,Bldgs : R & M : Day To Day,2001,J DRIVER LTD,A0000884,15/02/2024,EST0339486,170.75,N,,N,N
Pendle Borough Council,Property Services,Premises Related Expense,Bldgs : R & M : Day To Day,2001,J DRIVER LTD,A0000884,15/02/2024,EST0339486,683.14,N,,N,N
Pendle Borough Council,Property Services,Premises Related Expense,Bldgs : R & M : Day To Day,2001,J DRIVER LTD,A0000884,29/02/2024,EST0339776,227.55,N,,N,N
Pendle Borough Council,Property Services,Premises Related Expense,Grounds : R & M : Day to Day : Routine,2101,J DRIVER LTD,A0000884,15/02/2024,EST0339486,126,N,,N,N
Pendle Borough Council,Operational Services,Supplies and Services,Protective Clothing,4201,ENGINEERING & FOUNDRY SUPPLIES,A0001002,22/02/2024,OPS0339577,14.25,N,,N,N
Pendle Borough Council,Operational Services,Supplies and Services,Protective Clothing,4201,ENGINEERING & FOUNDRY SUPPLIES,A0001002,08/02/2024,OPS0339280,14.95,N,,N,N
Pendle Borough Council,Operational Services,Supplies and Services,Protective Clothing,4201,ENGINEERING & FOUNDRY SUPPLIES,A0001002,15/02/2024,OPS0339412,51.55,N,,N,N
Pendle Borough Council,Operational Services,Supplies and Services,Protective Clothing,4201,ENGINEERING & FOUNDRY SUPPLIES,A0001002,15/02/2024,OPS0339411,57,N,,N,N
Pendle Borough Council,"Planning, Building Control & Regulatory Services",Supplies and Services,Protective Clothing,4201,ENGINEERING & FOUNDRY SUPPLIES,A0001002,08/02/2024,PBC0339234,28.35,N,,N,N
Pendle Borough Council,Economic Growth,Supplies and Services,Protective Clothing,4201,ENGINEERING & FOUNDRY SUPPLIES,A0001002,15/02/2024,ECO0339313,142.84,N,,N,N
Pendle Borough Council,Operational Services,Supplies and Services,Other Expenses,4705,ENGINEERING & FOUNDRY SUPPLIES,A0001002,15/02/2024,OPS0339428,375.98,N,,N,N
Pendle Borough Council,Operational Services,,Stock : Purchases,PJ01,ENGINEERING & FOUNDRY SUPPLIES,A0001002,01/02/2024,OPS0339172,70.5,N,,N,N
Pendle Borough Council,Operational Services,,Stock : Purchases,PJ01,ENGINEERING & FOUNDRY SUPPLIES,A0001002,01/02/2024,OPS0339173,99.4,N,,N,N
Pendle Borough Council,Operational Services,,Stock : Purchases,PJ01,ENGINEERING & FOUNDRY SUPPLIES,A0001002,08/02/2024,OPS0339272,180,N,,N,N
Pendle Borough Council,Operational Services,,Stock : Purchases,PJ01,ENGINEERING & FOUNDRY SUPPLIES,A0001002,01/02/2024,OPS0339171,297.9,N,,N,N
Pendle Borough Council,Operational Services,,Stock : Purchases,PJ01,ENGINEERING & FOUNDRY SUPPLIES,A0001002,29/02/2024,OPS0339720,388.57,N,,N,N
Pendle Borough Council,Operational Services,Supplies and Services,Grant Funding,4737,EARBY TOWN COUNCIL,A0001004,29/02/2024,OPS0339735,533,N,,N,N
Pendle Borough Council,Economic Growth,Supplies and Services,Grant Funding,4737,EASTLANCS CHAMBER OF COMMERCE,A0001036,22/02/2024,ECO0339603,6558.86,N,,N,N
Pendle Borough Council,Operational Services,Transport Related Expense,Tprt : Repairs : General,3105,FREIGHT TRANSPORT ASSOCIATION,A0001124,08/02/2024,OPS0339259,44,N,,N,N
Pendle Borough Council,Operational Services,Transport Related Expense,Tprt : Repairs : General,3105,GIBSONS GARDEN MACHINERY LTD,A0001201,08/02/2024,OPS0339322,7.26,N,,N,N
Pendle Borough Council,Operational Services,Transport Related Expense,Tprt : Repairs : General,3105,GIBSONS GARDEN MACHINERY LTD,A0001201,08/02/2024,OPS0339334,36.95,N,,N,N
Pendle Borough Council,Operational Services,Transport Related Expense,Tprt : Repairs : General,3105,GIBSONS GARDEN MACHINERY LTD,A0001201,01/02/2024,OPS0339153,85.2,N,,N,N
Pendle Borough Council,Operational Services,Transport Related Expense,Tprt : Repairs : General,3105,GIBSONS GARDEN MACHINERY LTD,A0001201,08/02/2024,OPS0339278,565,N,,N,N
Pendle Borough Council,Operational Services,Transport Related Expense,Tprt : Repairs : General,3105,GIBSONS GARDEN MACHINERY LTD,A0001201,01/02/2024,OPS0339151,124.4,N,,N,N
Pendle Borough Council,Operational Services,Transport Related Expense,Tprt : Repairs : General,3105,GIBSONS GARDEN MACHINERY LTD,A0001201,22/02/2024,OPS0339579,293.17,N,,N,N
Pendle Borough Council,Operational Services,Transport Related Expense,Tprt : Repairs : General,3105,GIBSONS GARDEN MACHINERY LTD,A0001201,22/02/2024,OPS0339579,293.17,N,,N,N
Pendle Borough Council,Operational Services,Transport Related Expense,Tprt : Repairs : General,3105,GIBSONS GARDEN MACHINERY LTD,A0001201,22/02/2024,OPS0339579,293.17,N,,N,N
Pendle Borough Council,Operational Services,Transport Related Expense,Tprt : Repairs : General,3105,GIBSONS GARDEN MACHINERY LTD,A0001201,08/02/2024,OPS0339319,519.55,N,,N,N
Pendle Borough Council,Operational Services,Transport Related Expense,Tprt : Repairs : General,3105,GIBSONS GARDEN MACHINERY LTD,A0001201,08/02/2024,OPS0339320,47.3,N,,N,N
Pendle Borough Council,Operational Services,Transport Related Expense,Tprt : Repairs : General,3105,GIBSONS GARDEN MACHINERY LTD,A0001201,08/02/2024,OPS0339323,255.38,N,,N,N
Pendle Borough Council,Operational Services,Transport Related Expense,Tprt : Repairs : General,3105,GIBSONS GARDEN MACHINERY LTD,A0001201,08/02/2024,OPS0339320,14.2,N,,N,N
Pendle Borough Council,Operational Services,Transport Related Expense,Tprt : Repairs : General,3105,GIBSONS GARDEN MACHINERY LTD,A0001201,08/02/2024,OPS0339323,255.38,N,,N,N
Pendle Borough Council,Operational Services,Transport Related Expense,Tprt : Repairs : General,3105,GIBSONS GARDEN MACHINERY LTD,A0001201,08/02/2024,OPS0339320,62.6,N,,N,N
Pendle Borough Council,Operational Services,Supplies and Services,Telephones : Direct,4502,LODGE TECHNICAL LIMITED,A0001235,08/02/2024,OPS0339261,1500,N,,N,N
Pendle Borough Council,Operational Services,Supplies and Services,Expenditure : Materials,0002,JEWSON LIMITED,A0001323,01/02/2024,OPS0339157,62.94,N,,N,N
Pendle Borough Council,Operational Services,Supplies and Services,EFM Materials,4004,JEWSON LIMITED,A0001323,22/02/2024,OPS0339557,125.88,N,,N,N
Pendle Borough Council,Operational Services,Premises Related Expense,Bldgs : R & M : Day To Day,2001,J HARGREAVES,A0001359,22/02/2024,OPS0339560,25,N,,N,N
Pendle Borough Council,Operational Services,Premises Related Expense,Premises Cleaning,2601,J HARGREAVES,A0001359,22/02/2024,OPS0339560,100,N,,N,N
Pendle Borough Council,Finance,Supplies and Services,Subscriptions & Donations,4706,CIPFA BUSINESS LIMITED,A0001556,01/02/2024,FIN0339138,250,N,,N,N
Pendle Borough Council,Housing & Environmental Health,Supplies and Services,EFM Materials,4004,KILLGERM CHEMICALS LTD,A0001624,08/02/2024,HEH0339219,398.37,N,,N,N
Pendle Borough Council,Operational Services,Premises Related Expense,Grounds : R & M : Day to Day : Routine,2101,LANLEE SUPPLIES LIMITED,A0001672,22/02/2024,OPS0339563,21.61,N,,N,N
Pendle Borough Council,Operational Services,Premises Related Expense,Grounds : R & M : Day to Day : Routine,2101,LANLEE SUPPLIES LIMITED,A0001672,22/02/2024,OPS0339564,364.48,N,,N,N
Pendle Borough Council,Operational Services,Premises Related Expense,Grounds : R & M : Day to Day : Routine,2101,LANLEE SUPPLIES LIMITED,A0001672,29/02/2024,OPS0339766,17.28,N,,N,N
Pendle Borough Council,Operational Services,Premises Related Expense,Grounds : R & M : Day to Day : Routine,2101,LANLEE SUPPLIES LIMITED,A0001672,08/02/2024,OPS0339307,25.5,N,,N,N
Pendle Borough Council,Operational Services,Premises Related Expense,Grounds : R & M : Day to Day : Routine,2101,LANLEE SUPPLIES LIMITED,A0001672,22/02/2024,OPS0339588,80.19,N,,N,N
Pendle Borough Council,Operational Services,Supplies and Services,EFM Materials,4004,LANLEE SUPPLIES LIMITED,A0001672,15/02/2024,OPS0339423,61.1,N,,N,N
Pendle Borough Council,Operational Services,Transport Related Expense,Tprt : Repairs : General,3105,DICK LEIGH,A0001675,15/02/2024,OPS0339415,25.78,N,,N,N
Pendle Borough Council,Operational Services,Transport Related Expense,Tprt : Repairs : General,3105,DICK LEIGH,A0001675,29/02/2024,OPS0339741,55.16,N,,N,N
Pendle Borough Council,Operational Services,Transport Related Expense,Tprt : Repairs : General,3105,DICK LEIGH,A0001675,29/02/2024,OPS0339759,124.69,N,,N,N
Pendle Borough Council,Operational Services,Transport Related Expense,Tprt : Repairs : General,3105,DICK LEIGH,A0001675,15/02/2024,OPS0339416,179.13,N,,N,N
Pendle Borough Council,Operational Services,Transport Related Expense,Tprt : Repairs : General,3105,DICK LEIGH,A0001675,08/02/2024,OPS0339331,370.39,N,,N,N
Pendle Borough Council,Operational Services,Transport Related Expense,Tprt : Repairs : General,3105,DICK LEIGH,A0001675,15/02/2024,OPS0339414,34,N,,N,N
Pendle Borough Council,Operational Services,Transport Related Expense,Tprt : Repairs : General,3105,DICK LEIGH,A0001675,08/02/2024,OPS0339332,50.7,N,,N,N
Pendle Borough Council,Operational Services,Supplies and Services,Protective Clothing,4201,DICK LEIGH,A0001675,29/02/2024,OPS0339760,262.4,N,,N,N
Pendle Borough Council,Operational Services,Premises Related Expense,Trade Refuse Charges,2602,LANCASHIRE COUNTY COUNCIL,A0001690,29/02/2024,OPS0339729,109193.12,N,,N,N
Pendle Borough Council,Legal & Democratic Services,Supplies and Services,Search Fees,4404,LANCASHIRE COUNTY COUNCIL,A0001690,15/02/2024,LAD0339396,273.9,N,,N,N
Pendle Borough Council,Economic Growth,Supplies and Services,Grant Funding,4737,LANCASHIRE COUNTY COUNCIL,A0001690,22/02/2024,ECO0339458,168439.08,N,,N,N
Pendle Borough Council,Housing & Environmental Health,Capital Costs,Ren Grant : 1996 Act,CH22,LANCASHIRE COUNTY COUNCIL,A0001690,01/02/2024,HEH0339099,1975.48,N,,N,N
Pendle Borough Council,Directorate,Supplies and Services,Seminars etc All Costs,4601,LOCAL GOVERNMENT ASSOCIATION,A0001752,22/02/2024,DIR0339502,567,N,,N,N
Pendle Borough Council,Operational Services,Transport Related Expense,Tprt : Repairs : General,3105,LIMELIGHT SIGNS LIMITED,A0001796,15/02/2024,OPS0339410,156.06,N,,N,N
Pendle Borough Council,Property Services,Premises Related Expense,Grounds : R & M : Day to Day : Routine,2101,MONK OF COLNE LTD,A0001828,29/02/2024,EST0339777,8557.55,N,,N,N
Pendle Borough Council,Operational Services,Premises Related Expense,Grounds : R & M : Day to Day : Routine,2101,JOHN MACADAM & SON (RESCUE) LTD,A0001846,01/02/2024,OPS0339175,250,N,,N,N
Pendle Borough Council,Operational Services,Premises Related Expense,Grounds : R & M : Day to Day : Routine,2101,JOHN MACADAM & SON (RESCUE) LTD,A0001846,01/02/2024,OPS0339177,48,N,,N,N
Pendle Borough Council,Operational Services,Premises Related Expense,Grounds : R & M : Day to Day : Routine,2101,JOHN MACADAM & SON (RESCUE) LTD,A0001846,22/02/2024,OPS0339559,48,N,,N,N
Pendle Borough Council,Operational Services,Premises Related Expense,Grounds : R & M : Day to Day : Routine,2101,JOHN MACADAM & SON (RESCUE) LTD,A0001846,01/02/2024,OPS0339178,120,N,,N,N
Pendle Borough Council,Operational Services,Premises Related Expense,Grounds : R & M : Day to Day : Routine,2101,JOHN MACADAM & SON (RESCUE) LTD,A0001846,08/02/2024,OPS0339258,120,N,,N,N
Pendle Borough Council,Operational Services,Premises Related Expense,Grounds : R & M : Day to Day : Routine,2101,JOHN MACADAM & SON (RESCUE) LTD,A0001846,08/02/2024,OPS0339266,120,N,,N,N
Pendle Borough Council,Operational Services,Premises Related Expense,Grounds : R & M : Day to Day : Routine,2101,JOHN MACADAM & SON (RESCUE) LTD,A0001846,22/02/2024,OPS0339553,250,N,,N,N
Pendle Borough Council,Operational Services,Premises Related Expense,Grounds : R & M : Day to Day : Routine,2101,JOHN MACADAM & SON (RESCUE) LTD,A0001846,22/02/2024,OPS0339554,250,N,,N,N
Pendle Borough Council,Operational Services,,Paid in the Year,PD03,JOHN MACADAM & SON (RESCUE) LTD,A0001846,22/02/2024,OPS0339555,120,N,,N,N
Pendle Borough Council,Directorate,Supplies and Services,Seminars etc All Costs,4601,NELSON & COLNE COLLEGE,A0001974,08/02/2024,DIR0339343,104,N,,N,N
Pendle Borough Council,Property Services,Premises Related Expense,Water & Sewerage,2501,WATER PLUS LIMITED,A0001986,15/02/2024,EST4006784,-44.35,N,,N,N
Pendle Borough Council,Property Services,Premises Related Expense,Water & Sewerage,2501,WATER PLUS LIMITED,A0001986,15/02/2024,EST4006789,-43.92,N,,N,N
Pendle Borough Council,Property Services,Premises Related Expense,Water & Sewerage,2501,WATER PLUS LIMITED,A0001986,15/02/2024,EST4006790,-40.73,N,,N,N
Pendle Borough Council,Property Services,Premises Related Expense,Water & Sewerage,2501,WATER PLUS LIMITED,A0001986,15/02/2024,EST4006791,-40.73,N,,N,N
Pendle Borough Council,Property Services,Premises Related Expense,Water & Sewerage,2501,WATER PLUS LIMITED,A0001986,15/02/2024,EST4006788,-39.42,N,,N,N
Pendle Borough Council,Property Services,Premises Related Expense,Water & Sewerage,2501,WATER PLUS LIMITED,A0001986,15/02/2024,EST4006792,-39.42,N,,N,N
Pendle Borough Council,Property Services,Premises Related Expense,Water & Sewerage,2501,WATER PLUS LIMITED,A0001986,15/02/2024,EST4006804,-37.31,N,,N,N
Pendle Borough Council,Property Services,Premises Related Expense,Water & Sewerage,2501,WATER PLUS LIMITED,A0001986,15/02/2024,EST4006803,-10.97,N,,N,N
Pendle Borough Council,Property Services,Premises Related Expense,Water & Sewerage,2501,WATER PLUS LIMITED,A0001986,15/02/2024,EST0338543,10.97,N,,N,N
Pendle Borough Council,Property Services,Premises Related Expense,Water & Sewerage,2501,WATER PLUS LIMITED,A0001986,15/02/2024,EST0338735,24.96,N,,N,N
Pendle Borough Council,Property Services,Premises Related Expense,Water & Sewerage,2501,WATER PLUS LIMITED,A0001986,15/02/2024,EST0338732,39.42,N,,N,N
Pendle Borough Council,Property Services,Premises Related Expense,Water & Sewerage,2501,WATER PLUS LIMITED,A0001986,15/02/2024,EST0339197,50.9,N,,N,N
Pendle Borough Council,Property Services,Premises Related Expense,Water & Sewerage,2501,WATER PLUS LIMITED,A0001986,15/02/2024,EST0338416,27.85,N,,N,N
Pendle Borough Council,Property Services,Premises Related Expense,Water & Sewerage,2501,WATER PLUS LIMITED,A0001986,15/02/2024,EST0338539,28.7,N,,N,N
Pendle Borough Council,Property Services,Premises Related Expense,Water & Sewerage,2501,WATER PLUS LIMITED,A0001986,15/02/2024,EST4006779,-3872.69,N,,N,N
Pendle Borough Council,Property Services,Premises Related Expense,Water & Sewerage,2501,WATER PLUS LIMITED,A0001986,15/02/2024,EST0339482,2761.67,N,,N,N
Pendle Borough Council,Property Services,Premises Related Expense,Water & Sewerage,2501,WATER PLUS LIMITED,A0001986,15/02/2024,EST4006802,-106.88,N,,N,N
Pendle Borough Council,Property Services,Premises Related Expense,Water & Sewerage,2501,WATER PLUS LIMITED,A0001986,15/02/2024,EST4006801,-59.26,N,,N,N
Pendle Borough Council,Property Services,Premises Related Expense,Water & Sewerage,2501,WATER PLUS LIMITED,A0001986,15/02/2024,EST0338738,50.32,N,,N,N
Pendle Borough Council,Property Services,Premises Related Expense,Water & Sewerage,2501,WATER PLUS LIMITED,A0001986,15/02/2024,EST0338417,50.5,N,,N,N
Pendle Borough Council,Property Services,Premises Related Expense,Water & Sewerage,2501,WATER PLUS LIMITED,A0001986,15/02/2024,EST0338733,50.5,N,,N,N
Pendle Borough Council,Property Services,Premises Related Expense,Water & Sewerage,2501,WATER PLUS LIMITED,A0001986,15/02/2024,EST0338415,59.26,N,,N,N
Pendle Borough Council,Property Services,Premises Related Expense,Water & Sewerage,2501,WATER PLUS LIMITED,A0001986,15/02/2024,EST0339210,67.32,N,,N,N
Pendle Borough Council,Property Services,Premises Related Expense,Water & Sewerage,2501,WATER PLUS LIMITED,A0001986,15/02/2024,EST0338528,40.76,N,,N,N
Pendle Borough Council,Property Services,Premises Related Expense,Water & Sewerage,2501,WATER PLUS LIMITED,A0001986,15/02/2024,EST0338534,42.42,N,,N,N
Pendle Borough Council,Property Services,Premises Related Expense,Water & Sewerage,2501,WATER PLUS LIMITED,A0001986,15/02/2024,EST0338545,12.6,N,,N,N
Pendle Borough Council,Property Services,Premises Related Expense,Water & Sewerage,2501,WATER PLUS LIMITED,A0001986,15/02/2024,EST0338532,14.63,N,,N,N
Pendle Borough Council,Property Services,Premises Related Expense,Water & Sewerage,2501,WATER PLUS LIMITED,A0001986,15/02/2024,EST0338536,0.77,N,,N,N
Pendle Borough Council,Property Services,Premises Related Expense,Water & Sewerage,2501,WATER PLUS LIMITED,A0001986,15/02/2024,EST0338531,1.36,N,,N,N
Pendle Borough Council,Property Services,Premises Related Expense,Water & Sewerage,2501,WATER PLUS LIMITED,A0001986,15/02/2024,EST0338538,8.51,N,,N,N
Pendle Borough Council,Property Services,Premises Related Expense,Water & Sewerage,2501,WATER PLUS LIMITED,A0001986,15/02/2024,EST4006796,-43.75,N,,N,N
Pendle Borough Council,Property Services,Premises Related Expense,Water & Sewerage,2501,WATER PLUS LIMITED,A0001986,15/02/2024,EST4006798,-43.75,N,,N,N
Pendle Borough Council,Property Services,Premises Related Expense,Water & Sewerage,2501,WATER PLUS LIMITED,A0001986,15/02/2024,EST4006799,-43.75,N,,N,N
Pendle Borough Council,Property Services,Premises Related Expense,Water & Sewerage,2501,WATER PLUS LIMITED,A0001986,15/02/2024,EST4006797,-39.98,N,,N,N
Pendle Borough Council,Property Services,Premises Related Expense,Water & Sewerage,2501,WATER PLUS LIMITED,A0001986,15/02/2024,EST4006795,-20.44,N,,N,N
Pendle Borough Council,Property Services,Premises Related Expense,Water & Sewerage,2501,WATER PLUS LIMITED,A0001986,15/02/2024,EST0338542,20.44,N,,N,N
Pendle Borough Council,Property Services,Premises Related Expense,Water & Sewerage,2501,WATER PLUS LIMITED,A0001986,15/02/2024,EST0338544,86.51,N,,N,N
Pendle Borough Council,Property Services,Premises Related Expense,Water & Sewerage,2501,WATER PLUS LIMITED,A0001986,15/02/2024,EST4006780,-3872.69,N,,N,N
Pendle Borough Council,Property Services,Premises Related Expense,Water & Sewerage,2501,WATER PLUS LIMITED,A0001986,15/02/2024,EST4006781,-367.18,N,,N,N
Pendle Borough Council,Property Services,Premises Related Expense,Water & Sewerage,2501,WATER PLUS LIMITED,A0001986,15/02/2024,EST0339483,261.84,N,,N,N
Pendle Borough Council,Property Services,Premises Related Expense,Water & Sewerage,2501,WATER PLUS LIMITED,A0001986,15/02/2024,EST0338737,103.07,N,,N,N
Pendle Borough Council,Property Services,Premises Related Expense,Water & Sewerage,2501,WATER PLUS LIMITED,A0001986,15/02/2024,EST0338541,14.79,N,,N,N
Pendle Borough Council,Property Services,Premises Related Expense,Water & Sewerage,2501,WATER PLUS LIMITED,A0001986,15/02/2024,EST0338736,444.1,N,,N,N
Pendle Borough Council,Property Services,Premises Related Expense,Water & Sewerage,2501,WATER PLUS LIMITED,A0001986,15/02/2024,EST0338902,37.02,N,,N,N
Pendle Borough Council,Property Services,Premises Related Expense,Water & Sewerage,2501,WATER PLUS LIMITED,A0001986,22/02/2024,EST0339642,444.1,N,,N,N
Pendle Borough Council,Property Services,Premises Related Expense,Water & Sewerage,2501,WATER PLUS LIMITED,A0001986,15/02/2024,EST0338724,566.98,N,,N,N
Pendle Borough Council,Property Services,Premises Related Expense,Water & Sewerage,2501,WATER PLUS LIMITED,A0001986,15/02/2024,EST0338734,3040.79,N,,N,N
Pendle Borough Council,Property Services,Premises Related Expense,Water & Sewerage,2501,WATER PLUS LIMITED,A0001986,22/02/2024,EST0339641,3040.79,N,,N,N
Pendle Borough Council,Property Services,Premises Related Expense,Water & Sewerage,2501,WATER PLUS LIMITED,A0001986,15/02/2024,EST0338537,80.74,N,,N,N
Pendle Borough Council,Property Services,Premises Related Expense,Water & Sewerage,2501,WATER PLUS LIMITED,A0001986,15/02/2024,EST0338535,96,N,,N,N
Pendle Borough Council,Operational Services,Premises Related Expense,Grounds : R & M : Day to Day : Routine,2101,OPTION HYGIENE LIMITED,A0002063,29/02/2024,OPS0339730,36.3,N,,N,N
Pendle Borough Council,Operational Services,Transport Related Expense,Tprt : Repairs : General,3105,POWER PIPES (PENDLE) LIMITED,A0002089,29/02/2024,OPS0339769,209.97,N,,N,N
Pendle Borough Council,Housing & Environmental Health,Supplies and Services,Postages,4501,ROYAL MAIL GROUP LIMITED,A0002281,08/02/2024,HEH0339295,16.8,N,,N,N
Pendle Borough Council,Housing & Environmental Health,Supplies and Services,Postages,4501,ROYAL MAIL GROUP LIMITED,A0002281,08/02/2024,HEH0339294,60.25,N,,N,N
Pendle Borough Council,Housing & Environmental Health,Supplies and Services,Postages,4501,ROYAL MAIL GROUP LIMITED,A0002281,22/02/2024,HEH0339552,84.5,N,,N,N
Pendle Borough Council,Housing & Environmental Health,Supplies and Services,Postages,4501,ROYAL MAIL GROUP LIMITED,A0002281,08/02/2024,HEH0339295,113.1,N,,N,N
Pendle Borough Council,Housing & Environmental Health,Supplies and Services,Postages,4501,ROYAL MAIL GROUP LIMITED,A0002281,22/02/2024,HEH0339551,122.57,N,,N,N
Pendle Borough Council,Housing & Environmental Health,Supplies and Services,Postages,4501,ROYAL MAIL GROUP LIMITED,A0002281,22/02/2024,HEH0339552,8.45,N,,N,N
Pendle Borough Council,Housing & Environmental Health,Supplies and Services,Postages,4501,ROYAL MAIL GROUP LIMITED,A0002281,08/02/2024,HEH0339295,6.63,N,,N,N
Pendle Borough Council,Housing & Environmental Health,Supplies and Services,Postages,4501,ROYAL MAIL GROUP LIMITED,A0002281,08/02/2024,HEH0339294,9.23,N,,N,N
Pendle Borough Council,Housing & Environmental Health,Supplies and Services,Postages,4501,ROYAL MAIL GROUP LIMITED,A0002281,22/02/2024,HEH0339551,11.7,N,,N,N
Pendle Borough Council,Housing & Environmental Health,Supplies and Services,Postages,4501,ROYAL MAIL GROUP LIMITED,A0002281,22/02/2024,HEH0339552,46.8,N,,N,N
Pendle Borough Council,Housing & Environmental Health,Supplies and Services,Postages,4501,ROYAL MAIL GROUP LIMITED,A0002281,08/02/2024,HEH0339295,0.24,N,,N,N
Pendle Borough Council,Housing & Environmental Health,Supplies and Services,Postages,4501,ROYAL MAIL GROUP LIMITED,A0002281,08/02/2024,HEH0339294,1.6,N,,N,N
Pendle Borough Council,Housing & Environmental Health,Supplies and Services,Postages,4501,ROYAL MAIL GROUP LIMITED,A0002281,22/02/2024,HEH0339551,3.23,N,,N,N
Pendle Borough Council,Housing & Environmental Health,Supplies and Services,Postages,4501,ROYAL MAIL GROUP LIMITED,A0002281,22/02/2024,HEH0339552,3.9,N,,N,N
Pendle Borough Council,Housing & Environmental Health,Supplies and Services,Postages,4501,ROYAL MAIL GROUP LIMITED,A0002281,08/02/2024,HEH0339295,12.06,N,,N,N
Pendle Borough Council,Housing & Environmental Health,Supplies and Services,Postages,4501,ROYAL MAIL GROUP LIMITED,A0002281,08/02/2024,HEH0339295,0.65,N,,N,N
Pendle Borough Council,Housing & Environmental Health,Supplies and Services,Postages,4501,ROYAL MAIL GROUP LIMITED,A0002281,22/02/2024,HEH0339552,0.65,N,,N,N
Pendle Borough Council,Housing & Environmental Health,Supplies and Services,Postages,4501,ROYAL MAIL GROUP LIMITED,A0002281,08/02/2024,HEH0339294,4.55,N,,N,N
Pendle Borough Council,Housing & Environmental Health,Supplies and Services,Postages,4501,ROYAL MAIL GROUP LIMITED,A0002281,22/02/2024,HEH0339551,3.41,N,,N,N
Pendle Borough Council,Housing & Environmental Health,Supplies and Services,Postages,4501,ROYAL MAIL GROUP LIMITED,A0002281,22/02/2024,HEH0339551,5.34,N,,N,N
Pendle Borough Council,Housing & Environmental Health,Supplies and Services,Postages,4501,ROYAL MAIL GROUP LIMITED,A0002281,08/02/2024,HEH0339295,10.24,N,,N,N
Pendle Borough Council,Housing & Environmental Health,Supplies and Services,Postages,4501,ROYAL MAIL GROUP LIMITED,A0002281,08/02/2024,HEH0339294,16.79,N,,N,N
Pendle Borough Council,Housing & Environmental Health,Supplies and Services,Postages,4501,ROYAL MAIL GROUP LIMITED,A0002281,22/02/2024,HEH0339552,18.67,N,,N,N
Pendle Borough Council,Housing & Environmental Health,Supplies and Services,Postages,4501,ROYAL MAIL GROUP LIMITED,A0002281,08/02/2024,HEH0339295,2.43,N,,N,N
Pendle Borough Council,Housing & Environmental Health,Supplies and Services,Postages,4501,ROYAL MAIL GROUP LIMITED,A0002281,08/02/2024,HEH0339294,15.92,N,,N,N
Pendle Borough Council,Housing & Environmental Health,Supplies and Services,Postages,4501,ROYAL MAIL GROUP LIMITED,A0002281,22/02/2024,HEH0339551,32.3,N,,N,N
Pendle Borough Council,Housing & Environmental Health,Supplies and Services,Postages,4501,ROYAL MAIL GROUP LIMITED,A0002281,22/02/2024,HEH0339552,38.98,N,,N,N
Pendle Borough Council,Housing & Environmental Health,Supplies and Services,Postages,4501,ROYAL MAIL GROUP LIMITED,A0002281,08/02/2024,HEH0339295,120.51,N,,N,N
Pendle Borough Council,Housing & Environmental Health,Supplies and Services,Postages,4501,ROYAL MAIL GROUP LIMITED,A0002281,22/02/2024,HEH0339551,93.6,N,,N,N
Pendle Borough Council,Housing & Environmental Health,Supplies and Services,Postages,4501,ROYAL MAIL GROUP LIMITED,A0002281,08/02/2024,HEH0339294,107.25,N,,N,N
Pendle Borough Council,Housing & Environmental Health,Supplies and Services,Postages,4501,ROYAL MAIL GROUP LIMITED,A0002281,08/02/2024,HEH0339295,108.55,N,,N,N
Pendle Borough Council,Housing & Environmental Health,Supplies and Services,Postages,4501,ROYAL MAIL GROUP LIMITED,A0002281,22/02/2024,HEH0339552,2.67,N,,N,N
Pendle Borough Council,Housing & Environmental Health,Supplies and Services,Postages,4501,ROYAL MAIL GROUP LIMITED,A0002281,22/02/2024,HEH0339551,5.9,N,,N,N
Pendle Borough Council,Housing & Environmental Health,Supplies and Services,Postages,4501,ROYAL MAIL GROUP LIMITED,A0002281,08/02/2024,HEH0339295,6.15,N,,N,N
Pendle Borough Council,Housing & Environmental Health,Supplies and Services,Postages,4501,ROYAL MAIL GROUP LIMITED,A0002281,08/02/2024,HEH0339294,13.42,N,,N,N
Pendle Borough Council,Housing & Environmental Health,Supplies and Services,Postages,4501,ROYAL MAIL GROUP LIMITED,A0002281,22/02/2024,HEH0339552,18.72,N,,N,N
Pendle Borough Council,Housing & Environmental Health,Supplies and Services,Postages,4501,ROYAL MAIL GROUP LIMITED,A0002281,22/02/2024,HEH0339552,158.6,N,,N,N
Pendle Borough Council,Housing & Environmental Health,Supplies and Services,Postages,4501,ROYAL MAIL GROUP LIMITED,A0002281,08/02/2024,HEH0339294,2.67,N,,N,N
Pendle Borough Council,Housing & Environmental Health,Supplies and Services,Postages,4501,ROYAL MAIL GROUP LIMITED,A0002281,08/02/2024,HEH0339295,2.67,N,,N,N
Pendle Borough Council,Housing & Environmental Health,Supplies and Services,Postages,4501,ROYAL MAIL GROUP LIMITED,A0002281,22/02/2024,HEH0339552,5.34,N,,N,N
Pendle Borough Council,Housing & Environmental Health,Supplies and Services,Postages,4501,ROYAL MAIL GROUP LIMITED,A0002281,22/02/2024,HEH0339551,13.35,N,,N,N
Pendle Borough Council,Housing & Environmental Health,Supplies and Services,Postages,4501,ROYAL MAIL GROUP LIMITED,A0002281,08/02/2024,HEH0339294,98.49,N,,N,N
Pendle Borough Council,Housing & Environmental Health,Supplies and Services,Postages,4501,ROYAL MAIL GROUP LIMITED,A0002281,08/02/2024,HEH0339295,150.14,N,,N,N
Pendle Borough Council,Housing & Environmental Health,Supplies and Services,Postages,4501,ROYAL MAIL GROUP LIMITED,A0002281,22/02/2024,HEH0339552,234.38,N,,N,N
Pendle Borough Council,Housing & Environmental Health,Supplies and Services,Postages,4501,ROYAL MAIL GROUP LIMITED,A0002281,22/02/2024,HEH0339551,250.11,N,,N,N
Pendle Borough Council,Housing & Environmental Health,Supplies and Services,Postages,4501,ROYAL MAIL GROUP LIMITED,A0002281,08/02/2024,HEH0339294,2.67,N,,N,N
Pendle Borough Council,Housing & Environmental Health,Supplies and Services,Postages,4501,ROYAL MAIL GROUP LIMITED,A0002281,08/02/2024,HEH0339295,45.77,N,,N,N
Pendle Borough Council,Housing & Environmental Health,Supplies and Services,Postages,4501,ROYAL MAIL GROUP LIMITED,A0002281,08/02/2024,HEH0339294,55.21,N,,N,N
Pendle Borough Council,Housing & Environmental Health,Supplies and Services,Postages,4501,ROYAL MAIL GROUP LIMITED,A0002281,22/02/2024,HEH0339551,101,N,,N,N
Pendle Borough Council,Housing & Environmental Health,Supplies and Services,Postages,4501,ROYAL MAIL GROUP LIMITED,A0002281,22/02/2024,HEH0339552,102.29,N,,N,N
Pendle Borough Council,Operational Services,Supplies and Services,Postages,4501,ROYAL MAIL GROUP LIMITED,A0002281,01/02/2024,OPS0339174,111.62,N,,N,N
Pendle Borough Council,Legal & Democratic Services,Supplies and Services,Printing & Stationery,4301,SHAW & SONS LTD,A0002414,22/02/2024,LAD0339601,1303.2,N,,N,N
Pendle Borough Council,Operational Services,Transport Related Expense,Tprt : Annual Hire Charge,3601,STANLEY BROTHERS (TIPPERS) LTD,A0002422,08/02/2024,OPS0339277,2420,N,,N,N
Pendle Borough Council,Operational Services,Agency Costs,Refuse Collection DLO,5005,STANLEY BROTHERS (TIPPERS) LTD,A0002422,15/02/2024,OPS0339429,325,N,,N,N
Pendle Borough Council,Operational Services,Supplies and Services,Other Expenses,4705,STANLEY HOUSE VETERINARY GROUP,A0002423,08/02/2024,OPS0339267,137.59,N,,N,N
Pendle Borough Council,Operational Services,Premises Related Expense,Grounds : R & M : Day to Day : Routine,2101,ROBERTSON MEMORIALS,A0002590,08/02/2024,OPS0339339,45,N,,N,N
Pendle Borough Council,Policy & Commissioning,Indirect Employee Expenses,Staff Awards,1238,TRISTAR PRINTERS LTD,A0002731,08/02/2024,POL0339217,153,N,,N,N
Pendle Borough Council,Housing & Environmental Health,Supplies and Services,EFM : Other Equipment,4003,TRISTAR PRINTERS LTD,A0002731,29/02/2024,HEH0339739,255,N,,N,N
Pendle Borough Council,Policy & Commissioning,Supplies and Services,Publicity & advertisement,4704,TRISTAR PRINTERS LTD,A0002731,08/02/2024,POL0339248,955,N,,N,N
Pendle Borough Council,Policy & Commissioning,Supplies and Services,Other Expenses,4705,TRISTAR PRINTERS LTD,A0002731,01/02/2024,POL0339095,144,N,,N,N
Pendle Borough Council,Economic Growth,Premises Related Expense,Grounds : R & M : Day to Day : Routine,2101,YORKSHIRE WATER,A0002808,22/02/2024,ECO0339607,57.5,N,,N,N
Pendle Borough Council,Economic Growth,Premises Related Expense,Grounds : R & M : Day to Day : Routine,2101,YORKSHIRE WATER,A0002808,29/02/2024,ECO0339700,78.02,N,,N,N
Pendle Borough Council,Operational Services,Agency Staff,Emp : Agency Wages,1004,DHRB LIMITED T/A DRIVER HIRE (45680),A0003556,29/02/2024,OPS0339723,158.98,N,,N,N
Pendle Borough Council,Operational Services,Agency Staff,Emp : Agency Wages,1004,DHRB LIMITED T/A DRIVER HIRE (45680),A0003556,29/02/2024,OPS0339725,158.98,N,,N,N
Pendle Borough Council,Operational Services,Agency Staff,Emp : Agency Wages,1004,DHRB LIMITED T/A DRIVER HIRE (45680),A0003556,08/02/2024,OPS0339271,238.47,N,,N,N
Pendle Borough Council,Operational Services,Agency Staff,Emp : Agency Wages,1004,DHRB LIMITED T/A DRIVER HIRE (45680),A0003556,01/02/2024,OPS0339168,351.64,N,,N,N
Pendle Borough Council,Operational Services,Agency Staff,Emp : Agency Wages,1004,DHRB LIMITED T/A DRIVER HIRE (45680),A0003556,01/02/2024,OPS0339165,953.86,N,,N,N
Pendle Borough Council,Operational Services,Agency Staff,Emp : Agency Wages,1004,DHRB LIMITED T/A DRIVER HIRE (45680),A0003556,29/02/2024,OPS0339723,158.97,N,,N,N
Pendle Borough Council,Operational Services,Agency Staff,Emp : Agency Wages,1004,DHRB LIMITED T/A DRIVER HIRE (45680),A0003556,01/02/2024,OPS0339168,693.68,N,,N,N
Pendle Borough Council,Operational Services,Agency Staff,Emp : Agency Wages,1004,DHRB LIMITED T/A DRIVER HIRE (45680),A0003556,08/02/2024,OPS0339271,715.39,N,,N,N
Pendle Borough Council,Operational Services,Agency Staff,Emp : Agency Wages,1004,DHRB LIMITED T/A DRIVER HIRE (45680),A0003556,29/02/2024,OPS0339725,780.43,N,,N,N
Pendle Borough Council,Operational Services,Premises Related Expense,Grounds : R & M : Day to Day : Routine,2101,ENVIRONMENT AGENCY,A0003560,15/02/2024,OPS0339419,460,N,,N,N
Pendle Borough Council,Operational Services,Premises Related Expense,Grounds : R & M : Day to Day : Routine,2101,WICKSTEED LEISURE LTD,A0004748,22/02/2024,OPS0339581,57.48,N,,N,N
Pendle Borough Council,Legal & Democratic Services,Indirect Employee Expenses,Staff Refreshments,1261,PHILIP SANDERSON,A0006611,08/02/2024,LAD0339290,22.22,N,,N,N
Pendle Borough Council,Legal & Democratic Services,Supplies and Services,Hospitality,4611,PHILIP SANDERSON,A0006611,08/02/2024,LAD0339290,22.22,N,,N,N
Pendle Borough Council,Economic Growth,Capital Costs,Capital : Payments,CD14,EVERSHEDS SUTHERLAND,A0006791,22/02/2024,ECO0339459,4430.7,N,,N,N
Pendle Borough Council,Policy & Commissioning,Supplies and Services,Grant Funding,4737,COLNE OPEN DOOR CENTRE,A0009836,01/02/2024,POL0339125,7500,N,1121144,N,N
Pendle Borough Council,Policy & Commissioning,Supplies and Services,Subscriptions & Donations,4706,PENDLE CITIZENS ADVICE BUREAU,A0010260,01/02/2024,POL0339136,11610,N,,N,N
Pendle Borough Council,Policy & Commissioning,Supplies and Services,Subscriptions & Donations,4706,PENDLE CITIZENS ADVICE BUREAU,A0010260,01/02/2024,POL0339137,11610,N,,N,N
Pendle Borough Council,Finance,Premises Related Expense,Gas,2202,PENDLE LEISURE LIMITED,A0012961,15/02/2024,FIN0339442,115.8,N,XR43029,N,N
Pendle Borough Council,Finance,Premises Related Expense,Gas,2202,PENDLE LEISURE LIMITED,A0012961,15/02/2024,FIN0339442,119.66,N,XR43029,N,N
Pendle Borough Council,Finance,Premises Related Expense,Gas,2202,PENDLE LEISURE LIMITED,A0012961,15/02/2024,FIN0339442,124.66,N,XR43029,N,N
Pendle Borough Council,Finance,Premises Related Expense,Electricity,2203,PENDLE LEISURE LIMITED,A0012961,15/02/2024,FIN0339442,350,N,XR43029,N,N
Pendle Borough Council,Finance,Premises Related Expense,Electricity,2203,PENDLE LEISURE LIMITED,A0012961,15/02/2024,FIN0339442,855.98,N,XR43029,N,N
Pendle Borough Council,Finance,Premises Related Expense,Electricity,2203,PENDLE LEISURE LIMITED,A0012961,15/02/2024,FIN0339442,910.2,N,XR43029,N,N
Pendle Borough Council,Finance,Premises Related Expense,Electricity,2203,PENDLE LEISURE LIMITED,A0012961,15/02/2024,FIN0339442,1203.83,N,XR43029,N,N
Pendle Borough Council,Finance,Premises Related Expense,Water & Sewerage,2501,PENDLE LEISURE LIMITED,A0012961,15/02/2024,FIN0339442,12.57,N,XR43029,N,N
Pendle Borough Council,Finance,Premises Related Expense,Water & Sewerage,2501,PENDLE LEISURE LIMITED,A0012961,15/02/2024,FIN0339442,12.97,N,XR43029,N,N
Pendle Borough Council,Finance,Premises Related Expense,Water & Sewerage,2501,PENDLE LEISURE LIMITED,A0012961,15/02/2024,FIN0339442,141.17,N,XR43029,N,N
Pendle Borough Council,Finance,Premises Related Expense,Water & Sewerage,2501,PENDLE LEISURE LIMITED,A0012961,15/02/2024,FIN0339442,145.88,N,XR43029,N,N
Pendle Borough Council,Housing & Environmental Health,Capital Costs,Ren Grant : 1996 Act,CH22,SPAIN BUILDING & MAINTENANCE,A0015325,08/02/2024,HEH0339184,456.87,N,,N,N
Pendle Borough Council,Operational Services,Supplies and Services,Sub-Contractors,4007,ORCHARD RECYCLING SERVICE,A0015803,29/02/2024,OPS0339714,3006,N,,N,N
Pendle Borough Council,Operational Services,Supplies and Services,Sub-Contractors,4007,ORCHARD RECYCLING SERVICE,A0015803,15/02/2024,OPS0339430,3060,N,,N,N
Pendle Borough Council,Operational Services,Supplies and Services,Sub-Contractors,4007,ORCHARD RECYCLING SERVICE,A0015803,01/02/2024,OPS0339164,3150,N,,N,N
Pendle Borough Council,Operational Services,Supplies and Services,Sub-Contractors,4007,ORCHARD RECYCLING SERVICE,A0015803,08/02/2024,OPS0339263,3150,N,,N,N
Pendle Borough Council,Operational Services,Supplies and Services,Sub-Contractors,4007,ORCHARD RECYCLING SERVICE,A0015803,22/02/2024,OPS0339556,3177,N,,N,N
Pendle Borough Council,Operational Services,Transport Related Expense,Diesel Oil,3202,CROWN OIL LIMITED,A0019019,22/02/2024,OPS0339561,1157.25,N,,N,N
Pendle Borough Council,Operational Services,Transport Related Expense,Diesel Oil,3202,CROWN OIL LIMITED,A0019019,22/02/2024,OPS0339561,1157.25,N,,N,N
Pendle Borough Council,Operational Services,Transport Related Expense,Diesel Oil,3202,CROWN OIL LIMITED,A0019019,22/02/2024,OPS0339561,1157.25,N,,N,N
Pendle Borough Council,Operational Services,Transport Related Expense,Diesel Oil,3202,CROWN OIL LIMITED,A0019019,22/02/2024,OPS0339561,1157.25,N,,N,N
Pendle Borough Council,Operational Services,Transport Related Expense,Tprt : Repairs : General,3105,WALTON SUMMIT TRUCK  CENTRE LTD,A0020983,01/02/2024,OPS0339158,59.86,N,,N,N
Pendle Borough Council,Housing & Environmental Health,Capital Costs,Ren Grant : 1996 Act,CH22,STANNAH LIFT SERVICES LTD,A0021089,01/02/2024,HEH0339103,4428,N,,N,N
Pendle Borough Council,Housing & Environmental Health,Capital Costs,Ren Grant : 1996 Act,CH22,STANNAH LIFT SERVICES LTD,A0021089,01/02/2024,HEH0339102,5764,N,,N,N
Pendle Borough Council,Housing & Environmental Health,Capital Costs,Ren Grant : 1996 Act,CH22,STANNAH LIFT SERVICES LTD,A0021089,01/02/2024,HEH0339101,6487,N,,N,N
Pendle Borough Council,Housing & Environmental Health,Capital Costs,Ren Grant : 1996 Act,CH22,STANNAH LIFT SERVICES LTD,A0021089,29/02/2024,HEH0339794,6669,N,,N,N
Pendle Borough Council,Housing & Environmental Health,Capital Costs,Ren Grant : 1996 Act,CH22,STANNAH LIFT SERVICES LTD,A0021089,29/02/2024,HEH0339706,6705,N,,N,N
Pendle Borough Council,Operational Services,Supplies and Services,Sub-Contractors,4007,ASPEN VALLEY KENNELS & CATTERY,A0022106,15/02/2024,OPS0339421,72,N,,N,N
Pendle Borough Council,Operational Services,Supplies and Services,Other Expenses,4705,ASPEN VALLEY KENNELS & CATTERY,A0022106,15/02/2024,OPS0339421,342.58,N,,N,N
Pendle Borough Council,Operational Services,Premises Related Expense,Grounds : R & M : Day to Day : Routine,2101,MABRON PLASTICS LTD,A0024126,01/02/2024,OPS0339139,274.05,N,,N,N
Pendle Borough Council,Economic Growth,Capital Costs,Capital : Payments,CD14,DAVID GOODGER & ASSOCIATES LT,A0024824,29/02/2024,ECO0339789,500,N,,N,N
Pendle Borough Council,Housing & Environmental Health,Supplies and Services,Other Expenses,4705,GRADKO INTERNATIONAL LTD,A0025806,22/02/2024,HEH0339550,211.25,N,,N,N
Pendle Borough Council,Property Services,Premises Related Expense,Service Charge,2702,BARNFIELD INVESTMENT PROPERTIES LTD,A0026595,29/02/2024,EST0339775,1719.46,N,,N,N
Pendle Borough Council,Operational Services,Indirect Employee Expenses,Training,1211,SPECIALIST TRAINING & CONSULTANCY SERVICES LTD,A0026831,29/02/2024,OPS0339743,10,N,,N,N
Pendle Borough Council,Operational Services,Indirect Employee Expenses,Training,1211,SPECIALIST TRAINING & CONSULTANCY SERVICES LTD,A0026831,29/02/2024,OPS0339743,292,N,,N,N
Pendle Borough Council,"Planning, Building Control & Regulatory Services",Supplies and Services,Printing & Stationery,4301,WILDLIFE TRUST FOR LANCS MANCHESTER & N MERSEYSIDE,A0026880,29/02/2024,PBC0339692,650,N,229325,N,N
Pendle Borough Council,Legal & Democratic Services,,Paid in the Year,PD03,FARRER & CO,A0027034,08/02/2024,LAD0339293,1200,N,,N,N
Pendle Borough Council,Operational Services,Premises Related Expense,Bldgs : R & M : Day To Day,2001,BRITISH TELECOMMUNICATIONS PLC,A0040001,22/02/2024,OPS0339573,173.7,N,,N,N
Pendle Borough Council,Economic Growth,Supplies and Services,Publicity & advertisement,4704,LITE,A0040032,15/02/2024,ECO0339472,490,N,,N,N
Pendle Borough Council,Property Services,Premises Related Expense,Electricity,2203,BRITISH GAS BUSINESS,A0040331,22/02/2024,EST0339644,61.56,N,,N,N
Pendle Borough Council,Legal & Democratic Services,Supplies and Services,EFM : Photocopiers,4001,CANON (UK) LIMITED,A0040400,08/02/2024,LAD0339289,827.81,N,,N,N
Pendle Borough Council,"Planning, Building Control & Regulatory Services",Supplies and Services,EFM : Photocopiers,4001,CANON (UK) LIMITED,A0040400,08/02/2024,PBC0339131,109.28,N,,N,N
Pendle Borough Council,"Planning, Building Control & Regulatory Services",Supplies and Services,EFM : Photocopiers,4001,CANON (UK) LIMITED,A0040400,08/02/2024,PBC0339132,114.69,N,,N,N
Pendle Borough Council,"Planning, Building Control & Regulatory Services",Supplies and Services,EFM : Photocopiers,4001,CANON (UK) LIMITED,A0040400,15/02/2024,PBC0339449,194.62,N,,N,N
Pendle Borough Council,Operational Services,Supplies and Services,EFM : Photocopiers,4001,CANON (UK) LIMITED,A0040400,08/02/2024,OPS0339274,902.05,N,,N,N
Pendle Borough Council,Finance,Supplies and Services,Printing & Stationery,4301,CANON (UK) LIMITED,A0040400,15/02/2024,FIN4006808,-64.08,N,,N,N
Pendle Borough Council,Finance,Supplies and Services,Consultants Fees,4401,CANON (UK) LIMITED,A0040400,08/02/2024,FIN0339297,104.98,N,,N,N
Pendle Borough Council,Human Resources,Indirect Employee Expenses,Recruitment,1221,SOLACE IN BUSINESS LIMITED,A0040401,22/02/2024,PER0339518,4534.95,N,,N,N
Pendle Borough Council,Property Services,Premises Related Expense,Bldgs : R & M : Day To Day,2001,PENNINE FIRE & SAFETY LTD,A0040931,15/02/2024,EST0339487,116.25,N,,N,N
Pendle Borough Council,Property Services,Premises Related Expense,Bldgs : R & M : Day To Day,2001,PENNINE FIRE & SAFETY LTD,A0040931,15/02/2024,EST0339488,32.74,N,,N,N
Pendle Borough Council,Operational Services,Premises Related Expense,Grounds : R & M : Day to Day : Routine,2101,VP PLC - GRAVSHORE,A0041286,29/02/2024,OPS0339758,430,N,,N,N
Pendle Borough Council,Legal & Democratic Services,Supplies and Services,Printing & Stationery,4301,CIVICA ELECTION SERVICES,A0041321,08/02/2024,LAD0339317,518.3,N,,N,N
Pendle Borough Council,Legal & Democratic Services,Supplies and Services,Postages,4501,CIVICA ELECTION SERVICES,A0041321,08/02/2024,LAD0339317,520.3,N,,N,N
Pendle Borough Council,Policy & Commissioning,Supplies and Services,Other Expenses,4705,VUELIO -  A I MEDIA & COMMUNICATIONS,A0041869,08/02/2024,POL0339249,3000,N,,N,N
Pendle Borough Council,Housing & Environmental Health,Capital Costs,Ren Grant : 1996 Act,CH22,D J LINGARD & ASSOCIATES LTD,A0042727,15/02/2024,HEH0339432,240,N,,N,N
Pendle Borough Council,Operational Services,Premises Related Expense,Bldgs : R & M : Day To Day,2001,WATER SMART (NW) LIMITED,A0042729,29/02/2024,OPS0339718,83,N,,N,N
Pendle Borough Council,Operational Services,Premises Related Expense,Bldgs : R & M : Day To Day,2001,GREENVALE PRODUCTS LIMITED,A0043407,01/02/2024,PCO4006698,-15,N,,N,N
Pendle Borough Council,Operational Services,Premises Related Expense,Grounds : R & M : Day to Day : Routine,2101,GREENVALE PRODUCTS LIMITED,A0043407,01/02/2024,OPS0339142,320,N,,N,N
Pendle Borough Council,Directorate,Capital Costs,Miscellaneous,CE4F,ASKEW REFRIGERATION SERVICES LTD,A0043524,29/02/2024,DIR0339795,11375.59,N,,N,N
Pendle Borough Council,Operational Services,Transport Related Expense,Tprt : Repairs : General,3105, J RUSHTON,A0043864,15/02/2024,OPS0339418,80,N,,N,N
Pendle Borough Council,Property Services,Premises Related Expense,Electricity,2203,NPOWER LTD,A0044051,08/02/2024,EST0339325,1076.06,N,,N,N
Pendle Borough Council,Property Services,Capital Costs,Capital:Relocation Payments,CD04,NPOWER LTD,A0044051,01/02/2024,EST4006805,-331.62,N,,N,N
Pendle Borough Council,Property Services,Capital Costs,Capital:Relocation Payments,CD04,NPOWER LTD,A0044051,01/02/2024,EST0339200,968.87,N,,N,N
Pendle Borough Council,Economic Growth,Supplies and Services,Other Expenses,4705,WEST CRAVEN BAPTIST CHURCH,A0045270,22/02/2024,ECO0339609,1200,N,,N,N
Pendle Borough Council,"Planning, Building Control & Regulatory Services",Supplies and Services,Seminars etc All Costs,4601,RTPI NORTH WEST,A0046093,08/02/2024,PBC0339240,85,N,,N,N
Pendle Borough Council,"Planning, Building Control & Regulatory Services",Supplies and Services,Seminars etc All Costs,4601,RTPI NORTH WEST,A0046093,08/02/2024,PBC0339242,85,N,,N,N
Pendle Borough Council,"Planning, Building Control & Regulatory Services",Supplies and Services,Seminars etc All Costs,4601,RTPI NORTH WEST,A0046093,08/02/2024,PBC0339243,85,N,,N,N
Pendle Borough Council,"Planning, Building Control & Regulatory Services",Supplies and Services,Seminars etc All Costs,4601,RTPI NORTH WEST,A0046093,08/02/2024,PBC0339247,85,N,,N,N
Pendle Borough Council,"Planning, Building Control & Regulatory Services",Supplies and Services,Seminars etc All Costs,4601,RTPI NORTH WEST,A0046093,08/02/2024,PBC0339244,170,N,,N,N
Pendle Borough Council,"Planning, Building Control & Regulatory Services",Supplies and Services,Seminars etc All Costs,4601,RTPI NORTH WEST,A0046093,08/02/2024,PBC0339245,170,N,,N,N
Pendle Borough Council,"Planning, Building Control & Regulatory Services",Supplies and Services,Seminars etc All Costs,4601,RTPI NORTH WEST,A0046093,08/02/2024,PBC0339237,191,N,,N,N
Pendle Borough Council,"Planning, Building Control & Regulatory Services",Supplies and Services,Seminars etc All Costs,4601,RTPI NORTH WEST,A0046093,08/02/2024,PBC0339241,191,N,,N,N
Pendle Borough Council,"Planning, Building Control & Regulatory Services",Supplies and Services,Seminars etc All Costs,4601,RTPI NORTH WEST,A0046093,08/02/2024,PBC0339246,255,N,,N,N
Pendle Borough Council,"Planning, Building Control & Regulatory Services",Supplies and Services,Printing & Stationery,4301,THE ENVIRONMENT PARTNERSHIP (TEP) LIMITED,A0049717,29/02/2024,PBC0339595,9931.43,N,,N,N
Pendle Borough Council,Economic Growth,Supplies and Services,Other Expenses,4705,BUTLER SHEETMETAL LIMITED,A0050988,01/02/2024,ECO0339205,220,N,,N,N
Pendle Borough Council,Economic Growth,Supplies and Services,Other Expenses,4705,BUTLER SHEETMETAL LIMITED,A0050988,01/02/2024,ECO0339204,700,N,,N,N
Pendle Borough Council,Economic Growth,Supplies and Services,Other Expenses,4705,BUTLER SHEETMETAL LIMITED,A0050988,01/02/2024,ECO0339203,1180,N,,N,N
Pendle Borough Council,Operational Services,Transport Related Expense,Tyres,3204,ROSSENDALE VULCANISING (SALES) LTD,A0051239,22/02/2024,OPS0339580,25,N,,N,N
Pendle Borough Council,Operational Services,Transport Related Expense,Tyres,3204,ROSSENDALE VULCANISING (SALES) LTD,A0051239,22/02/2024,OPS0339580,25,N,,N,N
Pendle Borough Council,Operational Services,Transport Related Expense,Tyres,3204,ROSSENDALE VULCANISING (SALES) LTD,A0051239,22/02/2024,OPS0339580,78,N,,N,N
Pendle Borough Council,Finance,Premises Related Expense,Rents,2301,LIBERATA UK LTD,A0051618,08/02/2024,FIN0339229,514.83,N,,N,N
Pendle Borough Council,Policy & Commissioning,Supplies and Services,Consultants Fees,4401,LIBERATA UK LTD,A0051618,22/02/2024,POL0339596,39303.84,N,,N,N
Pendle Borough Council,Finance,Agency Costs,Liberata U/C,5303,LIBERATA UK LTD,A0051618,15/02/2024,FIN0339981,6191.67,N,,N,N
Pendle Borough Council,Finance,Agency Costs,Liberata U/C,5303,LIBERATA UK LTD,A0051618,15/02/2024,FIN0339455,39535.66,N,,N,N
Pendle Borough Council,Finance,Agency Costs,Liberata U/C,5303,LIBERATA UK LTD,A0051618,15/02/2024,FIN0339981,39088.32,N,,N,N
Pendle Borough Council,Finance,Agency Costs,Liberata U/C,5303,LIBERATA UK LTD,A0051618,15/02/2024,FIN0339981,29281.06,N,,N,N
Pendle Borough Council,Finance,Agency Costs,Liberata U/C,5303,LIBERATA UK LTD,A0051618,15/02/2024,FIN0339981,87929.31,N,,N,N
Pendle Borough Council,Finance,Agency Costs,Liberata U/C,5303,LIBERATA UK LTD,A0051618,15/02/2024,FIN0339981,61549.46,N,,N,N
Pendle Borough Council,Finance,Agency Costs,Liberata U/C,5303,LIBERATA UK LTD,A0051618,15/02/2024,FIN0339981,94565.45,N,,N,N
Pendle Borough Council,Finance,Agency Costs,Liberata U/C,5303,LIBERATA UK LTD,A0051618,15/02/2024,FIN0339981,120487.8,N,,N,N
Pendle Borough Council,Finance,Capital Costs,Capital : Salaries,cd13,LIBERATA UK LTD,A0051618,22/02/2024,FIN0339654,2731.7,N,,N,N
Pendle Borough Council,Finance,Capital Costs,Capital : Salaries,CD13,LIBERATA UK LTD,A0051618,22/02/2024,FIN0339656,1345,N,,N,N
Pendle Borough Council,Economic Growth,Capital Costs,Capital : Salaries,CD13,LIBERATA UK LTD,A0051618,29/02/2024,ECO0339750,2420.13,N,,N,N
Pendle Borough Council,Economic Growth,Capital Costs,Capital : Salaries,CD13,LIBERATA UK LTD,A0051618,22/02/2024,POL0339220,3947.83,N,,N,N
Pendle Borough Council,Finance,Capital Costs,Capital : Payments,CD14,LIBERATA UK LTD,A0051618,15/02/2024,FIN0339496,5133.88,N,,N,N
Pendle Borough Council,Housing & Environmental Health,Capital Costs,Ren Grant : 1996 Act,CH22,LIBERATA UK LTD,A0051618,22/02/2024,HEH0339542,1639.39,N,,N,N
Pendle Borough Council,Operational Services,Premises Related Expense,Grounds : R & M : Day to Day : Routine,2101,ARCOL ENGINEERING LTD,A0052060,22/02/2024,OPS0339582,90,N,,N,N
Pendle Borough Council,Operational Services,Supplies and Services,Grant Funding,4737,GREEN TECH LTD,A0052622,29/02/2024,OPS0339737,426.95,N,,N,N
Pendle Borough Council,Operational Services,Premises Related Expense,Bldgs : R & M : Day To Day,2001,MONKS CONTRACTORS LIMITED,A0053900,15/02/2024,OPS0339422,1260,N,,N,N
Pendle Borough Council,Operational Services,Transport Related Expense,Tprt : Repairs : General,3105,FLEET STREET GARAGE LIMITED,A0054291,01/02/2024,OPS0339144,60,N,,N,N
Pendle Borough Council,Operational Services,Supplies and Services,Seminars etc All Costs,4601,BEN SHAW TRAINING LIMITED,A0055722,08/02/2024,OPS0339262,55,N,,N,N
Pendle Borough Council,Operational Services,Supplies and Services,Seminars etc All Costs,4601,BEN SHAW TRAINING LIMITED,A0055722,08/02/2024,OPS0339262,105,N,,N,N
Pendle Borough Council,Finance,Supplies and Services,Consultants Fees,4401,L G FUTURES LIMITED,A0056113,08/02/2024,FIN0339341,6835,N,,N,N
Pendle Borough Council,Finance,Supplies and Services,Seminars etc All Costs,4601,L G FUTURES LIMITED,A0056113,08/02/2024,FIN0339250,250,N,,N,N
Pendle Borough Council,Economic Growth,Supplies and Services,Grant Funding,4737,THE UNIVERSITY OF SHEFFIELD,A0056773,29/02/2024,ECO0339745,15782.58,N,,N,N
Pendle Borough Council,Economic Growth,Supplies and Services,Grant Funding,4737,THE UNIVERSITY OF SHEFFIELD,A0056773,29/02/2024,ECO0339746,24296.08,N,,N,N
Pendle Borough Council,Economic Growth,Capital Costs,Capital : Payments,CD14,THE UNIVERSITY OF SHEFFIELD,A0056773,29/02/2024,ECO0339745,3760.2,N,,N,N
Pendle Borough Council,Operational Services,Transport Related Expense,Tprt : Repairs : General,3105,HYDRAIR,A0056976,01/02/2024,OPS0339155,93.34,N,,N,N
Pendle Borough Council,Operational Services,Premises Related Expense,Grounds : R & M : Day to Day : Routine,2101,A BINNS & CO,A0057121,22/02/2024,OPS0339584,190,N,,N,N
Pendle Borough Council,Operational Services,Premises Related Expense,Grounds : R & M : Day to Day : Routine,2101,A BINNS & CO,A0057121,29/02/2024,OPS0339764,800,N,,N,N
Pendle Borough Council,Operational Services,Premises Related Expense,Grounds : R & M : Day to Day : Routine,2101,A BINNS & CO,A0057121,29/02/2024,OPS0339765,950,N,,N,N
Pendle Borough Council,Legal & Democratic Services,Supplies and Services,Seminars etc All Costs,4601,CIVICA UK LIMITED,A0057596,29/02/2024,LAD0339704,110,N,,N,N
Pendle Borough Council,Operational Services,Support Services,Admin Buildings Expenses,7001,CHUBB FIRE & SECURITY LTD,A0057603,15/02/2024,OPS0339420,902.86,N,,N,N
Pendle Borough Council,Operational Services,Premises Related Expense,Bldgs : R & M : Day To Day,2001,P LEE WASTE OIL LIMTED,A0058412,29/02/2024,OPS0339715,820,N,,N,N
Pendle Borough Council,Operational Services,Transport Related Expense,Tprt : Repairs : General,3105,UNITED UTILITIES,A0059246,08/02/2024,OPS0339276,36.69,N,,N,N
Pendle Borough Council,Operational Services,Transport Related Expense,Tprt : Repairs : General,3105,UNITED UTILITIES,A0059246,08/02/2024,OPS0339276,36.69,N,,N,N
Pendle Borough Council,Economic Growth,Agency Costs,Lancashire C C,5102,NSL LIMITED,A0059256,15/02/2024,ECO0339314,2419.6,N,,N,N
Pendle Borough Council,"Planning, Building Control & Regulatory Services",Supplies and Services,Adverts : Statutory Notice,4702,NATIONAL WORLD PUBLISHING LTD,A0059640,01/02/2024,PBC0338959,286.01,N,,N,N
Pendle Borough Council,"Planning, Building Control & Regulatory Services",Supplies and Services,Adverts : Statutory Notice,4702,NATIONAL WORLD PUBLISHING LTD,A0059640,29/02/2024,PBC0339690,286.01,N,,N,N
Pendle Borough Council,"Planning, Building Control & Regulatory Services",Supplies and Services,Adverts : Statutory Notice,4702,NATIONAL WORLD PUBLISHING LTD,A0059640,29/02/2024,PBC0339689,312.01,N,,N,N
Pendle Borough Council,"Planning, Building Control & Regulatory Services",Supplies and Services,Adverts : Statutory Notice,4702,NATIONAL WORLD PUBLISHING LTD,A0059640,29/02/2024,PBC0339452,338.01,N,,N,N
Pendle Borough Council,"Planning, Building Control & Regulatory Services",Supplies and Services,Adverts : Statutory Notice,4702,NATIONAL WORLD PUBLISHING LTD,A0059640,29/02/2024,PBC0339522,338.01,N,,N,N
Pendle Borough Council,"Planning, Building Control & Regulatory Services",Supplies and Services,Adverts : Statutory Notice,4702,NATIONAL WORLD PUBLISHING LTD,A0059640,08/02/2024,PBC0339135,364.01,N,,N,N
Pendle Borough Council,"Planning, Building Control & Regulatory Services",Supplies and Services,Adverts : Statutory Notice,4702,NATIONAL WORLD PUBLISHING LTD,A0059640,08/02/2024,PBC0339133,468.02,N,,N,N
Pendle Borough Council,Housing & Environmental Health,Transfer Payments,Accommodation ,6103,HILL VIEW (PRIVATE) HOTEL,A0059754,08/02/2024,HEH0339207,13157,N,,N,N
Pendle Borough Council,Housing & Environmental Health,Transfer Payments,Accommodation ,6103,HILL VIEW (PRIVATE) HOTEL,A0059754,22/02/2024,HEH0339545,13230,N,,N,N
Pendle Borough Council,Property Services,Premises Related Expense,Bldgs : R & M : Day To Day,2001,MAXIGIENE ENVIRONMENTAL SERVICES LTD,A0060911,01/02/2024,EST0339194,25,N,,N,N
Pendle Borough Council,Property Services,Premises Related Expense,Bldgs : R & M : Day To Day,2001,MAXIGIENE ENVIRONMENTAL SERVICES LTD,A0060911,29/02/2024,EST0339784,25,N,,N,N
Pendle Borough Council,Property Services,Premises Related Expense,Bldgs : R & M : Day To Day,2001,MAXIGIENE ENVIRONMENTAL SERVICES LTD,A0060911,15/02/2024,EST0339492,200,N,,N,N
Pendle Borough Council,Property Services,Premises Related Expense,Bldgs : R & M : Day To Day,2001,MAXIGIENE ENVIRONMENTAL SERVICES LTD,A0060911,15/02/2024,EST0339493,150,N,,N,N
Pendle Borough Council,Property Services,Premises Related Expense,Bldgs : R & M : Day To Day,2001,MAXIGIENE ENVIRONMENTAL SERVICES LTD,A0060911,15/02/2024,EST0339494,590,N,,N,N
Pendle Borough Council,Property Services,Supplies and Services,Other Expenses,4705,MAXIGIENE ENVIRONMENTAL SERVICES LTD,A0060911,29/02/2024,EST0339783,570,N,,N,N
Pendle Borough Council,Property Services,Supplies and Services,Other Expenses,4705,MAXIGIENE ENVIRONMENTAL SERVICES LTD,A0060911,01/02/2024,EST0339192,605,N,,N,N
Pendle Borough Council,Operational Services,Transport Related Expense,Tprt : Repairs : General,3105,VALE ENGINEERING (YORK) LTD,A0061399,29/02/2024,OPS0339767,43.49,N,,N,N
Pendle Borough Council,Operational Services,Supplies and Services,Grant Funding,4737,COATES LANE PRIMARY SCHOOL,A0061559,15/02/2024,OPS0339366,452.59,N,,N,N
Pendle Borough Council,Property Services,Premises Related Expense,Bldgs : R & M : Day To Day,2001,KEYPLUS SECURITY LIMITED,A0062723,15/02/2024,EST0339489,28.53,N,,N,N
Pendle Borough Council,Finance,Supplies and Services,EFM : Photocopiers,4001,RICOH UK LIMITED,A0063806,08/02/2024,FIN0339345,1471.11,N,,N,N
Pendle Borough Council,Finance,Capital Costs,Capital : Payments,CD14,RICOH UK LIMITED,A0063806,08/02/2024,FIN4006807,-8277,N,,N,N
Pendle Borough Council,Finance,Capital Costs,Capital : Payments,CD14,RICOH UK LIMITED,A0063806,08/02/2024,FIN4006806,-8277,N,,N,N
Pendle Borough Council,Finance,Capital Costs,Capital : Payments,CD14,RICOH UK LIMITED,A0063806,08/02/2024,FIN0339346,5308.89,N,,N,N
Pendle Borough Council,Finance,Capital Costs,Capital : Payments,CD14,RICOH UK LIMITED,A0063806,08/02/2024,FIN0339344,8277,N,,N,N
Pendle Borough Council,Finance,Capital Costs,Capital : Payments,CD14,RICOH UK LIMITED,A0063806,08/02/2024,FIN0339347,16480,N,,N,N
Pendle Borough Council,Economic Growth,Supplies and Services,EFM Materials,4004,NEW MIND INTERNET CONSULTANCY LTD,A0064687,22/02/2024,ECO0339602,100,N,,N,N
Pendle Borough Council,Human Resources,Indirect Employee Expenses,Emp : Medical Expenses,1236,COLNE OSTEOPATHY,A0065115,15/02/2024,PER0339448,180,N,,N,N
Pendle Borough Council,Human Resources,Transport Related Expense,Car Allows : Offs : Lease Exps,3806,ARNOLD CLARK VEHICLE MANAGEMENT,A0065524,29/02/2024,PER0339771,120.83,N,,N,N
Pendle Borough Council,Human Resources,Transport Related Expense,Car Allows : Offs : Lease Exps,3806,ARNOLD CLARK VEHICLE MANAGEMENT,A0065524,29/02/2024,PER0339771,147.22,N,,N,N
Pendle Borough Council,Legal & Democratic Services,Premises Related Expense,Rents,2301,THE RAINHALL CENTRE,A0066193,08/02/2024,LAD0339287,45,N,,N,N
Pendle Borough Council,Operational Services,Premises Related Expense,Grounds : R & M : Day to Day : Routine,2101,PROLUDIC LIMITED,A0066305,08/02/2024,OPS0339304,896.89,N,,N,N
Pendle Borough Council,Finance,Supplies and Services,Printing & Stationery,4301,HBINFO LTD,A0066405,08/02/2024,FIN0339252,520,N,,N,N
Pendle Borough Council,Property Services,Premises Related Expense,Bldgs : R & M : Day To Day,2001,SPEAKMAN CONTRACTORS LTD,A0066581,15/02/2024,EST0339495,146.38,N,,N,N
Pendle Borough Council,Property Services,Premises Related Expense,Bldgs : R & M : Day To Day,2001,SPEAKMAN CONTRACTORS LTD,A0066581,15/02/2024,EST0339495,276.96,N,,N,N
Pendle Borough Council,Property Services,Premises Related Expense,Bldgs : R & M : Day To Day,2001,SPEAKMAN CONTRACTORS LTD,A0066581,08/02/2024,EST0339365,567.82,N,,N,N
Pendle Borough Council,Property Services,Premises Related Expense,Bldgs : R & M : Day To Day,2001,SPEAKMAN CONTRACTORS LTD,A0066581,08/02/2024,EST0339365,2562.79,N,,N,N
Pendle Borough Council,Property Services,Premises Related Expense,Bldgs : R & M : Day To Day,2001,SPEAKMAN CONTRACTORS LTD,A0066581,15/02/2024,EST0339495,322.73,N,,N,N
Pendle Borough Council,Property Services,Premises Related Expense,Bldgs : R & M : Day To Day,2001,SPEAKMAN CONTRACTORS LTD,A0066581,15/02/2024,EST0339495,474.81,N,,N,N
Pendle Borough Council,Property Services,Premises Related Expense,Bldgs : R & M : Day To Day,2001,SPEAKMAN CONTRACTORS LTD,A0066581,15/02/2024,EST0339495,321.2,N,,N,N
Pendle Borough Council,Property Services,Premises Related Expense,Bldgs : R & M : Day To Day,2001,SPEAKMAN CONTRACTORS LTD,A0066581,15/02/2024,EST0339495,441.63,N,,N,N
Pendle Borough Council,Property Services,Premises Related Expense,Bldgs : R & M : Day To Day,2001,SPEAKMAN CONTRACTORS LTD,A0066581,01/02/2024,EST0339199,25.65,N,,N,N
Pendle Borough Council,Property Services,Premises Related Expense,Bldgs : R & M : Day To Day,2001,SPEAKMAN CONTRACTORS LTD,A0066581,08/02/2024,EST0339365,83.79,N,,N,N
Pendle Borough Council,Property Services,Premises Related Expense,Bldgs : R & M : Day To Day,2001,SPEAKMAN CONTRACTORS LTD,A0066581,15/02/2024,EST0339495,88.92,N,,N,N
Pendle Borough Council,Property Services,Premises Related Expense,Bldgs : R & M : Day To Day,2001,SPEAKMAN CONTRACTORS LTD,A0066581,01/02/2024,EST0339199,115.43,N,,N,N
Pendle Borough Council,Property Services,Premises Related Expense,Bldgs : R & M : Day To Day,2001,SPEAKMAN CONTRACTORS LTD,A0066581,01/02/2024,EST0339199,282.47,N,,N,N
Pendle Borough Council,Property Services,Premises Related Expense,Bldgs : R & M : Day To Day,2001,SPEAKMAN CONTRACTORS LTD,A0066581,01/02/2024,EST0339199,347.88,N,,N,N
Pendle Borough Council,Property Services,Premises Related Expense,Bldgs : R & M : Day To Day,2001,SPEAKMAN CONTRACTORS LTD,A0066581,15/02/2024,EST0339495,213.52,N,,N,N
Pendle Borough Council,Property Services,Premises Related Expense,Bldgs : R & M : Day To Day,2001,SPEAKMAN CONTRACTORS LTD,A0066581,08/02/2024,EST0339365,843.46,N,,N,N
Pendle Borough Council,Property Services,Premises Related Expense,Bldgs : R & M : Day To Day,2001,SPEAKMAN CONTRACTORS LTD,A0066581,15/02/2024,EST0339495,3276.84,N,,N,N
Pendle Borough Council,Property Services,Premises Related Expense,Bldgs : R & M : Day To Day,2001,SPEAKMAN CONTRACTORS LTD,A0066581,15/02/2024,EST0339495,280.89,N,,N,N
Pendle Borough Council,Property Services,Premises Related Expense,Bldgs : R & M : Day To Day,2001,SPEAKMAN CONTRACTORS LTD,A0066581,15/02/2024,EST0339495,51.3,N,,N,N
Pendle Borough Council,Property Services,Premises Related Expense,Bldgs : R & M : Day To Day,2001,SPEAKMAN CONTRACTORS LTD,A0066581,01/02/2024,EST0339199,38.48,N,,N,N
Pendle Borough Council,Property Services,Premises Related Expense,Bldgs : R & M : Day To Day,2001,SPEAKMAN CONTRACTORS LTD,A0066581,01/02/2024,EST0339199,41.9,N,,N,N
Pendle Borough Council,Property Services,Premises Related Expense,Bldgs : R & M : Day To Day,2001,SPEAKMAN CONTRACTORS LTD,A0066581,15/02/2024,EST0339495,41.9,N,,N,N
Pendle Borough Council,Property Services,Premises Related Expense,Bldgs : R & M : Day To Day,2001,SPEAKMAN CONTRACTORS LTD,A0066581,08/02/2024,EST0339365,107.17,N,,N,N
Pendle Borough Council,Property Services,Premises Related Expense,Bldgs : R & M : Day To Day,2001,SPEAKMAN CONTRACTORS LTD,A0066581,15/02/2024,EST0339495,159.57,N,,N,N
Pendle Borough Council,Property Services,Premises Related Expense,Bldgs : R & M : Day To Day,2001,SPEAKMAN CONTRACTORS LTD,A0066581,15/02/2024,EST0339495,214.31,N,,N,N
Pendle Borough Council,Property Services,Premises Related Expense,Bldgs : R & M : Day To Day,2001,SPEAKMAN CONTRACTORS LTD,A0066581,08/02/2024,EST0339365,289.5,N,,N,N
Pendle Borough Council,Property Services,Premises Related Expense,Bldgs : R & M : Day To Day,2001,SPEAKMAN CONTRACTORS LTD,A0066581,01/02/2024,EST0339199,585.57,N,,N,N
Pendle Borough Council,Property Services,Premises Related Expense,Bldgs : R & M : Day To Day,2001,SPEAKMAN CONTRACTORS LTD,A0066581,15/02/2024,EST0339495,670.82,N,,N,N
Pendle Borough Council,Property Services,Premises Related Expense,Bldgs : R & M : Abnormal,2002,SPEAKMAN CONTRACTORS LTD,A0066581,01/02/2024,EST0339199,620.69,N,,N,N
Pendle Borough Council,Property Services,Premises Related Expense,Grounds : R & M : Day to Day : Routine,2101,SPEAKMAN CONTRACTORS LTD,A0066581,01/02/2024,EST0339199,159.32,N,,N,N
Pendle Borough Council,Property Services,Supplies and Services,Other Expenses,4705,SPEAKMAN CONTRACTORS LTD,A0066581,15/02/2024,EST0339495,530.46,N,,N,N
Pendle Borough Council,Property Services,Capital Costs,Capital : Payments,CD14,SPEAKMAN CONTRACTORS LTD,A0066581,08/02/2024,EST0339328,2474.63,N,,N,N
Pendle Borough Council,Property Services,Capital Costs,Capital : Payments,CD14,SPEAKMAN CONTRACTORS LTD,A0066581,08/02/2024,EST0339365,11211.4,N,,N,N
Pendle Borough Council,Human Resources,Indirect Employee Expenses,Emp : Medical Expenses,1236,PEOPLE ASSET MANAGEMENT LIMITED,A0067613,01/02/2024,PER0339113,196.35,N,,N,N
Pendle Borough Council,Human Resources,Indirect Employee Expenses,Emp : Medical Expenses,1236,PEOPLE ASSET MANAGEMENT LIMITED,A0067613,15/02/2024,PER0339447,217.5,N,,N,N
Pendle Borough Council,Economic Growth,Supplies and Services,LCC Levy (Admins Costs),4419,PATROL,A0067663,15/02/2024,ECO0339474,35.75,N,,N,N
Pendle Borough Council,Finance,Capital Costs,Capital:Relocation Payments,cd04,HM REVENUE & CUSTOMS,A0067741,07/02/2024,FIN0339972,1800,N,,N,N
Pendle Borough Council,Operational Services,Transport Related Expense,Tprt : Repairs : General,3105,PROBRUSH T/A NORTHERN MUNICIPAL SPARES LTD,A0068263,08/02/2024,OPS0339273,264.78,N,,N,N
Pendle Borough Council,Operational Services,Transport Related Expense,Tprt : Repairs : General,3105,PROBRUSH T/A NORTHERN MUNICIPAL SPARES LTD,A0068263,08/02/2024,OPS0339273,264.78,N,,N,N
Pendle Borough Council,Operational Services,Transport Related Expense,Tprt : Repairs : General,3105,PROBRUSH T/A NORTHERN MUNICIPAL SPARES LTD,A0068263,08/02/2024,OPS0339273,264.78,N,,N,N
Pendle Borough Council,Operational Services,Transport Related Expense,Tprt : Repairs : General,3105,PROBRUSH T/A NORTHERN MUNICIPAL SPARES LTD,A0068263,08/02/2024,OPS0339273,264.78,N,,N,N
Pendle Borough Council,Operational Services,Transport Related Expense,Tprt : Repairs : General,3105,PROBRUSH T/A NORTHERN MUNICIPAL SPARES LTD,A0068263,08/02/2024,OPS0339273,73.62,N,,N,N
Pendle Borough Council,Economic Growth,Supplies and Services,Processing Fees,4424,CHIPSIDE LTD,A0068587,15/02/2024,ECO0339470,14.75,N,,N,N
Pendle Borough Council,Economic Growth,Supplies and Services,Processing Fees,4424,CHIPSIDE LTD,A0068587,29/02/2024,ECO0339790,332.81,N,,N,N
Pendle Borough Council,Operational Services,Premises Related Expense,Grounds : R & M : Day to Day : Routine,2101,M C & M A STEWART HAULAGE,A0068863,08/02/2024,OPS0339279,500,N,,N,N
Pendle Borough Council,Operational Services,Premises Related Expense,Grounds : R & M : Day to Day : Routine,2101,M C & M A STEWART HAULAGE,A0068863,08/02/2024,OPS0339281,869.87,N,,N,N
Pendle Borough Council,Operational Services,Supplies and Services,Sub-Contractors,4007,QHS SOLUTIONS LIMITED,A0071912,29/02/2024,OPS0339712,8000,N,,N,N
Pendle Borough Council,Housing & Environmental Health,Supplies and Services,Private Water Supply Expenditure,4425,UNITED UTILITIES WATER PLC,A0072400,08/02/2024,HEH0339296,159.9,N,,N,N
Pendle Borough Council,Housing & Environmental Health,Supplies and Services,Private Water Supply Expenditure,4425,UNITED UTILITIES WATER PLC,A0072400,22/02/2024,HEH0339623,248.59,N,,N,N
Pendle Borough Council,Housing & Environmental Health,Supplies and Services,Private Water Supply Expenditure,4425,UNITED UTILITIES WATER PLC,A0072400,01/02/2024,HEH0339104,258.77,N,,N,N
Pendle Borough Council,Operational Services,Supplies and Services,Sub-Contractors,4007,RENTOKIL INITIAL UK LIMITED,A0072816,08/02/2024,OPS0339269,0.92,N,,N,N
Pendle Borough Council,Operational Services,Supplies and Services,Sub-Contractors,4007,RENTOKIL INITIAL UK LIMITED,A0072816,08/02/2024,OPS0339268,96.22,N,,N,N
Pendle Borough Council,Operational Services,Supplies and Services,Sub-Contractors,4007,RENTOKIL INITIAL UK LIMITED,A0072816,29/02/2024,OPS0339716,109.66,N,,N,N
Pendle Borough Council,Operational Services,Supplies and Services,Sub-Contractors,4007,RENTOKIL INITIAL UK LIMITED,A0072816,15/02/2024,OPS0339426,315.25,N,,N,N
Pendle Borough Council,Operational Services,Supplies and Services,Sub-Contractors,4007,RENTOKIL INITIAL UK LIMITED,A0072816,15/02/2024,OPS0339425,2335.47,N,,N,N
Pendle Borough Council,Operational Services,Supplies and Services,Sub-Contractors,4007,RENTOKIL INITIAL UK LIMITED,A0072816,15/02/2024,OPS0339425,6.34,N,,N,N
Pendle Borough Council,Operational Services,Supplies and Services,Sub-Contractors,4007,RENTOKIL INITIAL UK LIMITED,A0072816,15/02/2024,OPS0339426,66.58,N,,N,N
Pendle Borough Council,Operational Services,Supplies and Services,Sub-Contractors,4007,RENTOKIL INITIAL UK LIMITED,A0072816,15/02/2024,OPS0339425,92.14,N,,N,N
Pendle Borough Council,Operational Services,Premises Related Expense,Grounds : R & M : Day to Day : Routine,2101,FENLAND LEISURE PRODUCTS LIMITED,A0072950,01/02/2024,OPS0339150,52,N,,N,N
Pendle Borough Council,Operational Services,Premises Related Expense,Grounds : R & M : Day to Day : Routine,2101,FENLAND LEISURE PRODUCTS LIMITED,A0072950,01/02/2024,OPS0339143,562,N,,N,N
Pendle Borough Council,Operational Services,Premises Related Expense,Grounds : R & M : Day to Day : Routine,2101,FENLAND LEISURE PRODUCTS LIMITED,A0072950,22/02/2024,OPS0339583,770,N,,N,N
Pendle Borough Council,Operational Services,Supplies and Services,Grant Funding,4737,GISBURN ROAD COMMUNITY PRIMARY SCHOOL,A0074210,29/02/2024,OPS0339733,522.99,N,,N,N
Pendle Borough Council,Legal & Democratic Services,Supplies and Services,Printing & Stationery,4301,THOMSON REUTERS PROFESSIONAL UK LIMITED,A0077400,22/02/2024,LAD0339398,374,N,,N,N
Pendle Borough Council,Legal & Democratic Services,Supplies and Services,Printing & Stationery,4301,THOMSON REUTERS PROFESSIONAL UK LIMITED,A0077400,08/02/2024,LAD0339253,1153.95,N,,N,N
Pendle Borough Council,"Planning, Building Control & Regulatory Services",Supplies and Services,Printing & Stationery,4301,THOMSON REUTERS PROFESSIONAL UK LIMITED,A0077400,01/02/2024,PBC0338961,86.38,N,,N,N
Pendle Borough Council,"Planning, Building Control & Regulatory Services",Supplies and Services,Printing & Stationery,4301,THOMSON REUTERS PROFESSIONAL UK LIMITED,A0077400,01/02/2024,PBC0338961,4418.78,N,,N,N
Pendle Borough Council,Operational Services,Premises Related Expense,Grounds : R & M : Day to Day : Routine,2101,GLASDON UK LIMITED,A0078667,22/02/2024,OPS0339570,175.32,N,,N,N
Pendle Borough Council,Operational Services,Supplies and Services,EFM : Other Equipment,4003,GLASDON UK LIMITED,A0078667,08/02/2024,OPS0339256,720.42,N,,N,N
Pendle Borough Council,Economic Growth,Supplies and Services,Other Expenses,4705,KELBROOK & SOUGH PARISH COUNCIL,A0081332,22/02/2024,ECO0339610,1375,N,,N,N
Pendle Borough Council,Economic Growth,Supplies and Services,Other Expenses,4705,KELBROOK & SOUGH PARISH COUNCIL,A0081332,22/02/2024,ECO0339611,567.9,N,,N,N
Pendle Borough Council,Operational Services,Supplies and Services,Grant Funding,4737,KELBROOK & SOUGH PARISH COUNCIL,A0081332,15/02/2024,OPS0339368,500,N,,N,N
Pendle Borough Council,Policy & Commissioning,Supplies and Services,Children`s holiday activities,4716,POSITIVE ACTION IN THE COMMUNITY,A0081553,22/02/2024,POL0339621,660,N,1088536,N,N
Pendle Borough Council,Policy & Commissioning,Supplies and Services,Grant Funding,4737,POSITIVE ACTION IN THE COMMUNITY,A0081553,22/02/2024,POL0339620,2000,N,1088536,N,N
Pendle Borough Council,Operational Services,Transport Related Expense,Diesel Oil,3202,TATE FUEL OILS LIMITED,A0082819,22/02/2024,OPS0339591,2395,N,,N,N
Pendle Borough Council,Economic Growth,Premises Related Expense,Grounds : R & M : Day to Day : Routine,2101,G & G SIGNS,A0082942,29/02/2024,ECO0339786,50,N,,N,N
Pendle Borough Council,Operational Services,Supplies and Services,Grant Funding,4737,BLACKO PARISH COUNCIL,A0084321,15/02/2024,OPS0339369,567.8,N,,N,N
Pendle Borough Council,Finance,Supplies and Services,Allpay,4422,ALLPAY LIMITED,A0084372,08/02/2024,FIN0339223,11,N,,N,N
Pendle Borough Council,Finance,Supplies and Services,Allpay,4422,ALLPAY LIMITED,A0084372,08/02/2024,FIN0339224,11,N,,N,N
Pendle Borough Council,Finance,Supplies and Services,Allpay,4422,ALLPAY LIMITED,A0084372,08/02/2024,FIN0339227,19.14,N,,N,N
Pendle Borough Council,Finance,Supplies and Services,Allpay,4422,ALLPAY LIMITED,A0084372,08/02/2024,FIN0339226,24.29,N,,N,N
Pendle Borough Council,Finance,Supplies and Services,Allpay,4422,ALLPAY LIMITED,A0084372,08/02/2024,FIN0339222,51.06,N,,N,N
Pendle Borough Council,Finance,Supplies and Services,Allpay,4422,ALLPAY LIMITED,A0084372,08/02/2024,FIN0339225,1486.67,N,,N,N
Pendle Borough Council,Housing & Environmental Health,,Housing Impts/Cap Repairs,0104,ELITE PLUMBING,A0084584,15/02/2024,HEH0339239,140,N,,N,N
Pendle Borough Council,Housing & Environmental Health,,Housing Impts/Cap Repairs,0104,ELITE PLUMBING,A0084584,29/02/2024,HEH0339717,600,N,,N,N
Pendle Borough Council,Housing & Environmental Health,,Housing Impts/Cap Repairs,0104,ELITE PLUMBING,A0084584,01/02/2024,HEH0339183,1725,N,,N,N
Pendle Borough Council,Housing & Environmental Health,,Housing Impts/Cap Repairs,0104,ELITE PLUMBING,A0084584,29/02/2024,HEH0339707,1725,N,,N,N
Pendle Borough Council,Housing & Environmental Health,,Housing Impts/Cap Repairs,0104,ELITE PLUMBING,A0084584,29/02/2024,HEH0339709,1725,N,,N,N
Pendle Borough Council,Housing & Environmental Health,,Housing Impts/Cap Repairs,0104,ELITE PLUMBING,A0084584,29/02/2024,HEH0339705,1915,N,,N,N
Pendle Borough Council,Housing & Environmental Health,,Housing Impts/Cap Repairs,0104,ELITE PLUMBING,A0084584,29/02/2024,HEH0339708,1915,N,,N,N
Pendle Borough Council,Housing & Environmental Health,,Housing Impts/Cap Repairs,0104,ELITE PLUMBING,A0084584,29/02/2024,HEH0339711,2935,N,,N,N
Pendle Borough Council,Housing & Environmental Health,,Housing Impts/Cap Repairs,0104,ELITE PLUMBING,A0084584,29/02/2024,HEH0339699,4262.5,N,,N,N
Pendle Borough Council,Housing & Environmental Health,,Housing Impts/Cap Repairs,0104,ELITE PLUMBING,A0084584,15/02/2024,HEH0339437,4905,N,,N,N
Pendle Borough Council,Housing & Environmental Health,,Housing Impts/Cap Repairs,0104,ELITE PLUMBING,A0084584,01/02/2024,HEH0339182,5525,N,,N,N
Pendle Borough Council,Housing & Environmental Health,,Other Income : Non-VATable,9303,ELITE PLUMBING,A0084584,29/02/2024,HEH0339703,30,N,,N,N
Pendle Borough Council,Housing & Environmental Health,Capital Costs,Ren Grant : 1996 Act,CH22,ELITE PLUMBING,A0084584,01/02/2024,HEH0339097,7626.2,N,,N,N
Pendle Borough Council,Housing & Environmental Health,Supplies and Services,Other Expenses,4705,GREAT PLACES HOUSING ASSOCIATION,A0084701,15/02/2024,HEH0339359,388.91,N,,N,N
Pendle Borough Council,Economic Growth,Premises Related Expense,Grounds : R & M : Day to Day : Routine,2101,EARBY & SALTERFORTH INTERNAL DRAINAGE BOARD,A0085348,22/02/2024,ECO0339605,5.28,N,,N,N
Pendle Borough Council,Economic Growth,Premises Related Expense,Grounds : R & M : Day to Day : Routine,2101,KEVIN WILKINSON LANDSCAPES LTD,A0085660,15/02/2024,ECO0339315,216,N,,N,N
Pendle Borough Council,Property Services,Premises Related Expense,Bldgs : R & M : Day To Day,2001,OFFICE COOLERS LTD,A0085846,01/02/2024,EST0339195,931.68,N,,N,N
Pendle Borough Council,Operational Services,Premises Related Expense,Grounds : R & M : Day to Day : Routine,2101,MARCHBRIDGE BUILDERS LIMITED,A0087284,22/02/2024,OPS0339566,501.6,N,,N,N
Pendle Borough Council,Finance,Premises Related Expense,Electricity,2203,EDF ENERGY,A0088932,06/02/2024,FIN0339987,104.71,N,,N,N
Pendle Borough Council,Finance,Premises Related Expense,Electricity,2203,EDF ENERGY,A0088932,06/02/2024,FIN0339987,135.04,N,,N,N
Pendle Borough Council,Finance,Premises Related Expense,Electricity,2203,EDF ENERGY,A0088932,06/02/2024,FIN0339987,55.34,N,,N,N
Pendle Borough Council,Finance,Premises Related Expense,Electricity,2203,EDF ENERGY,A0088932,06/02/2024,FIN0339987,96.24,N,,N,N
Pendle Borough Council,Finance,Premises Related Expense,Electricity,2203,EDF ENERGY,A0088932,06/02/2024,FIN0339987,183.76,N,,N,N
Pendle Borough Council,Finance,Premises Related Expense,Electricity,2203,EDF ENERGY,A0088932,06/02/2024,FIN0339987,384.28,N,,N,N
Pendle Borough Council,Finance,Premises Related Expense,Electricity,2203,EDF ENERGY,A0088932,06/02/2024,FIN0339987,644.51,N,,N,N
Pendle Borough Council,Finance,Premises Related Expense,Electricity,2203,EDF ENERGY,A0088932,06/02/2024,FIN0339987,117.96,N,,N,N
Pendle Borough Council,Finance,Premises Related Expense,Electricity,2203,EDF ENERGY,A0088932,06/02/2024,FIN0339987,281.6,N,,N,N
Pendle Borough Council,Finance,Premises Related Expense,Electricity,2203,EDF ENERGY,A0088932,06/02/2024,FIN0339987,30.08,N,,N,N
Pendle Borough Council,Finance,Premises Related Expense,Electricity,2203,EDF ENERGY,A0088932,06/02/2024,FIN0339987,1612.25,N,,N,N
Pendle Borough Council,Finance,Premises Related Expense,Electricity,2203,EDF ENERGY,A0088932,06/02/2024,FIN0339987,358.2,N,,N,N
Pendle Borough Council,Finance,Premises Related Expense,Electricity,2203,EDF ENERGY,A0088932,06/02/2024,FIN0339987,60.4,N,,N,N
Pendle Borough Council,Finance,Premises Related Expense,Electricity,2203,EDF ENERGY,A0088932,06/02/2024,FIN0339987,42.25,N,,N,N
Pendle Borough Council,Finance,Premises Related Expense,Electricity,2203,EDF ENERGY,A0088932,06/02/2024,FIN0339987,95.65,N,,N,N
Pendle Borough Council,Finance,Premises Related Expense,Electricity,2203,EDF ENERGY,A0088932,06/02/2024,FIN0339987,35.58,N,,N,N
Pendle Borough Council,Finance,Premises Related Expense,Electricity,2203,EDF ENERGY,A0088932,06/02/2024,FIN0339987,121.2,N,,N,N
Pendle Borough Council,Finance,Premises Related Expense,Electricity,2203,EDF ENERGY,A0088932,06/02/2024,FIN0339987,641.87,N,,N,N
Pendle Borough Council,Finance,Premises Related Expense,Electricity,2203,EDF ENERGY,A0088932,06/02/2024,FIN0339987,42.61,N,,N,N
Pendle Borough Council,Finance,Premises Related Expense,Electricity,2203,EDF ENERGY,A0088932,06/02/2024,FIN0339987,395.04,N,,N,N
Pendle Borough Council,Finance,Premises Related Expense,Electricity,2203,EDF ENERGY,A0088932,06/02/2024,FIN0339987,31.23,N,,N,N
Pendle Borough Council,Finance,Premises Related Expense,Electricity,2203,EDF ENERGY,A0088932,06/02/2024,FIN0339987,707.97,N,,N,N
Pendle Borough Council,Finance,Premises Related Expense,Electricity,2203,EDF ENERGY,A0088932,06/02/2024,FIN0339987,50.55,N,,N,N
Pendle Borough Council,Finance,Premises Related Expense,Electricity,2203,EDF ENERGY,A0088932,06/02/2024,FIN0339987,696.73,N,,N,N
Pendle Borough Council,Finance,Premises Related Expense,Electricity,2203,EDF ENERGY,A0088932,06/02/2024,FIN0339987,1906.37,N,,N,N
Pendle Borough Council,Finance,Premises Related Expense,Electricity,2203,EDF ENERGY,A0088932,06/02/2024,FIN0339987,1244.46,N,,N,N
Pendle Borough Council,Finance,Supplies and Services,Other Expenses,4705,EDF ENERGY,A0088932,06/02/2024,FIN0339987,30.23,N,,N,N
Pendle Borough Council,Finance,Supplies and Services,Other Expenses,4705,EDF ENERGY,A0088932,06/02/2024,FIN0339987,47.81,N,,N,N
Pendle Borough Council,Revenues Services,Supplies and Services,Search Fees,4404,INFORM CPI LIMITED,A0089895,22/02/2024,TRE0339517,180,N,,N,N
Pendle Borough Council,Revenues Services,Supplies and Services,Search Fees,4404,INFORM CPI LIMITED,A0089895,22/02/2024,TRE0339594,990,N,,N,N
Pendle Borough Council,Revenues Services,Supplies and Services,Search Fees,4404,INFORM CPI LIMITED,A0089895,01/02/2024,TRE0339114,1611.9,N,,N,N
Pendle Borough Council,Housing & Environmental Health,Supplies and Services,Other Expenses,4705,ULTIMATE PROPERTY SOLUTIONS,A0090032,01/02/2024,HEH0339213,525,N,,N,N
Pendle Borough Council,Operational Services,Agency Staff,Emp : Agency Wages,1004,RAPID RECRUIT LIMITED,A0090080,08/02/2024,OPS0339310,15.96,N,,N,N
Pendle Borough Council,Operational Services,Agency Staff,Emp : Agency Wages,1004,RAPID RECRUIT LIMITED,A0090080,22/02/2024,OPS0339568,68.3,N,,N,N
Pendle Borough Council,Operational Services,Agency Staff,Emp : Agency Wages,1004,RAPID RECRUIT LIMITED,A0090080,08/02/2024,OPS0339309,71.02,N,,N,N
Pendle Borough Council,Operational Services,Agency Staff,Emp : Agency Wages,1004,RAPID RECRUIT LIMITED,A0090080,22/02/2024,OPS0339567,80.35,N,,N,N
Pendle Borough Council,Operational Services,Agency Staff,Emp : Agency Wages,1004,RAPID RECRUIT LIMITED,A0090080,08/02/2024,OPS0339311,134.96,N,,N,N
Pendle Borough Council,Operational Services,Agency Staff,Emp : Agency Wages,1004,RAPID RECRUIT LIMITED,A0090080,08/02/2024,OPS0339312,147.04,N,,N,N
Pendle Borough Council,Housing & Environmental Health,Premises Related Expense,Bldgs : R & M : Abnormal,2002,A B C ELECTRICAL,A0090085,01/02/2024,HEH0339163,150,N,,N,N
Pendle Borough Council,Policy & Commissioning,Supplies and Services,Publicity & advertisement,4704,WE LOVE CREATIVE LIMITED,A0090098,15/02/2024,POL0339400,400,N,,N,N
Pendle Borough Council,Policy & Commissioning,Supplies and Services,Publicity & advertisement,4704,WE LOVE CREATIVE LIMITED,A0090098,15/02/2024,POL0339399,400,N,,N,N
Pendle Borough Council,Operational Services,Supplies and Services,Grant Funding,4737,LANDSCAPE SUPPLY COMPANY,A0090209,22/02/2024,OPS0339572,629.36,N,,N,N
Pendle Borough Council,Operational Services,,Stock : Purchases,PJ01,LANDSCAPE SUPPLY COMPANY,A0090209,01/02/2024,OPS0339170,127.71,N,,N,N
Pendle Borough Council,Finance,Transport Related Expense,Diesel Oil,3202,FUELMATE LTD,A0090265,13/02/2024,FIN0339869,158.73,N,,N,N
Pendle Borough Council,Finance,Transport Related Expense,Diesel Oil,3202,FUELMATE LTD,A0090265,20/02/2024,FIN0339870,162.22,N,,N,N
Pendle Borough Council,Finance,Transport Related Expense,Diesel Oil,3202,FUELMATE LTD,A0090265,06/02/2024,FIN0339868,169.9,N,,N,N
Pendle Borough Council,Finance,Transport Related Expense,Diesel Oil,3202,FUELMATE LTD,A0090265,20/02/2024,FIN0339870,292.28,N,,N,N
Pendle Borough Council,Finance,Transport Related Expense,Diesel Oil,3202,FUELMATE LTD,A0090265,06/02/2024,FIN0339868,304.41,N,,N,N
Pendle Borough Council,Finance,Transport Related Expense,Diesel Oil,3202,FUELMATE LTD,A0090265,13/02/2024,FIN0339869,304.61,N,,N,N
Pendle Borough Council,Finance,Transport Related Expense,Diesel Oil,3202,FUELMATE LTD,A0090265,20/02/2024,FIN0339870,252.31,N,,N,N
Pendle Borough Council,Finance,Transport Related Expense,Diesel Oil,3202,FUELMATE LTD,A0090265,06/02/2024,FIN0339868,318.96,N,,N,N
Pendle Borough Council,Finance,Transport Related Expense,Diesel Oil,3202,FUELMATE LTD,A0090265,13/02/2024,FIN0339869,390.06,N,,N,N
Pendle Borough Council,Finance,Transport Related Expense,Diesel Oil,3202,FUELMATE LTD,A0090265,20/02/2024,FIN0339870,97.99,N,,N,N
Pendle Borough Council,Finance,Transport Related Expense,Diesel Oil,3202,FUELMATE LTD,A0090265,13/02/2024,FIN0339869,298.52,N,,N,N
Pendle Borough Council,Finance,Transport Related Expense,Diesel Oil,3202,FUELMATE LTD,A0090265,06/02/2024,FIN0339868,309.26,N,,N,N
Pendle Borough Council,Finance,Transport Related Expense,Diesel Oil,3202,FUELMATE LTD,A0090265,13/02/2024,FIN0339869,235.51,N,,N,N
Pendle Borough Council,Finance,Transport Related Expense,Diesel Oil,3202,FUELMATE LTD,A0090265,06/02/2024,FIN0339868,319.8,N,,N,N
Pendle Borough Council,Finance,Transport Related Expense,Diesel Oil,3202,FUELMATE LTD,A0090265,20/02/2024,FIN0339870,353.56,N,,N,N
Pendle Borough Council,Finance,Transport Related Expense,Diesel Oil,3202,FUELMATE LTD,A0090265,13/02/2024,FIN0339869,295.32,N,,N,N
Pendle Borough Council,Finance,Transport Related Expense,Diesel Oil,3202,FUELMATE LTD,A0090265,20/02/2024,FIN0339870,310.89,N,,N,N
Pendle Borough Council,Finance,Transport Related Expense,Diesel Oil,3202,FUELMATE LTD,A0090265,06/02/2024,FIN0339868,318.75,N,,N,N
Pendle Borough Council,Finance,Transport Related Expense,Diesel Oil,3202,FUELMATE LTD,A0090265,20/02/2024,FIN0339870,209.35,N,,N,N
Pendle Borough Council,Finance,Transport Related Expense,Diesel Oil,3202,FUELMATE LTD,A0090265,06/02/2024,FIN0339868,55.82,N,,N,N
Pendle Borough Council,Finance,Transport Related Expense,Diesel Oil,3202,FUELMATE LTD,A0090265,13/02/2024,FIN0339869,79.14,N,,N,N
Pendle Borough Council,Finance,Transport Related Expense,Diesel Oil,3202,FUELMATE LTD,A0090265,20/02/2024,FIN0339870,350.41,N,,N,N
Pendle Borough Council,Finance,Transport Related Expense,Diesel Oil,3202,FUELMATE LTD,A0090265,13/02/2024,FIN0339869,247.62,N,,N,N
Pendle Borough Council,Finance,Transport Related Expense,Diesel Oil,3202,FUELMATE LTD,A0090265,20/02/2024,FIN0339870,275.37,N,,N,N
Pendle Borough Council,Finance,Transport Related Expense,Diesel Oil,3202,FUELMATE LTD,A0090265,06/02/2024,FIN0339868,295.32,N,,N,N
Pendle Borough Council,Finance,Transport Related Expense,Diesel Oil,3202,FUELMATE LTD,A0090265,13/02/2024,FIN0339869,203.18,N,,N,N
Pendle Borough Council,Finance,Transport Related Expense,Diesel Oil,3202,FUELMATE LTD,A0090265,06/02/2024,FIN0339868,232.47,N,,N,N
Pendle Borough Council,Finance,Transport Related Expense,Diesel Oil,3202,FUELMATE LTD,A0090265,20/02/2024,FIN0339870,276.56,N,,N,N
Pendle Borough Council,Finance,Transport Related Expense,Diesel Oil,3202,FUELMATE LTD,A0090265,20/02/2024,FIN0339870,156.53,N,,N,N
Pendle Borough Council,Finance,Transport Related Expense,Diesel Oil,3202,FUELMATE LTD,A0090265,06/02/2024,FIN0339868,319.72,N,,N,N
Pendle Borough Council,Finance,Transport Related Expense,Diesel Oil,3202,FUELMATE LTD,A0090265,13/02/2024,FIN0339869,320.93,N,,N,N
Pendle Borough Council,Finance,Transport Related Expense,Diesel Oil,3202,FUELMATE LTD,A0090265,20/02/2024,FIN0339870,98.63,N,,N,N
Pendle Borough Council,Finance,Transport Related Expense,Diesel Oil,3202,FUELMATE LTD,A0090265,06/02/2024,FIN0339868,169.76,N,,N,N
Pendle Borough Council,Finance,Transport Related Expense,Diesel Oil,3202,FUELMATE LTD,A0090265,13/02/2024,FIN0339869,264.48,N,,N,N
Pendle Borough Council,Finance,Transport Related Expense,Diesel Oil,3202,FUELMATE LTD,A0090265,13/02/2024,FIN0339869,125.63,N,,N,N
Pendle Borough Council,Finance,Transport Related Expense,Diesel Oil,3202,FUELMATE LTD,A0090265,06/02/2024,FIN0339868,134.97,N,,N,N
Pendle Borough Council,Finance,Transport Related Expense,Diesel Oil,3202,FUELMATE LTD,A0090265,20/02/2024,FIN0339870,220.7,N,,N,N
Pendle Borough Council,Finance,Transport Related Expense,Diesel Oil,3202,FUELMATE LTD,A0090265,13/02/2024,FIN0339869,115.05,N,,N,N
Pendle Borough Council,Finance,Transport Related Expense,Diesel Oil,3202,FUELMATE LTD,A0090265,06/02/2024,FIN0339868,298.97,N,,N,N
Pendle Borough Council,Finance,Transport Related Expense,Diesel Oil,3202,FUELMATE LTD,A0090265,20/02/2024,FIN0339870,379.15,N,,N,N
Pendle Borough Council,Finance,Transport Related Expense,Diesel Oil,3202,FUELMATE LTD,A0090265,06/02/2024,FIN0339868,168.37,N,,N,N
Pendle Borough Council,Finance,Transport Related Expense,Diesel Oil,3202,FUELMATE LTD,A0090265,20/02/2024,FIN0339870,204.45,N,,N,N
Pendle Borough Council,Finance,Transport Related Expense,Diesel Oil,3202,FUELMATE LTD,A0090265,06/02/2024,FIN0339868,139.69,N,,N,N
Pendle Borough Council,Finance,Transport Related Expense,Diesel Oil,3202,FUELMATE LTD,A0090265,13/02/2024,FIN0339869,52.14,N,,N,N
Pendle Borough Council,Finance,Transport Related Expense,Diesel Oil,3202,FUELMATE LTD,A0090265,20/02/2024,FIN0339870,111.73,N,,N,N
Pendle Borough Council,Finance,Transport Related Expense,Diesel Oil,3202,FUELMATE LTD,A0090265,06/02/2024,FIN0339868,179.77,N,,N,N
Pendle Borough Council,Finance,Transport Related Expense,Diesel Oil,3202,FUELMATE LTD,A0090265,06/02/2024,FIN0339868,177.23,N,,N,N
Pendle Borough Council,Finance,Transport Related Expense,Diesel Oil,3202,FUELMATE LTD,A0090265,20/02/2024,FIN0339870,188.69,N,,N,N
Pendle Borough Council,Finance,Transport Related Expense,Diesel Oil,3202,FUELMATE LTD,A0090265,13/02/2024,FIN0339869,59.18,N,,N,N
Pendle Borough Council,Finance,Transport Related Expense,Diesel Oil,3202,FUELMATE LTD,A0090265,06/02/2024,FIN0339868,127.47,N,,N,N
Pendle Borough Council,Finance,Transport Related Expense,Diesel Oil,3202,FUELMATE LTD,A0090265,20/02/2024,FIN0339870,180.45,N,,N,N
Pendle Borough Council,Finance,Transport Related Expense,Diesel Oil,3202,FUELMATE LTD,A0090265,20/02/2024,FIN0339870,54.62,N,,N,N
Pendle Borough Council,Finance,Transport Related Expense,Diesel Oil,3202,FUELMATE LTD,A0090265,06/02/2024,FIN0339868,91.79,N,,N,N
Pendle Borough Council,Finance,Transport Related Expense,Diesel Oil,3202,FUELMATE LTD,A0090265,06/02/2024,FIN0339868,68.49,N,,N,N
Pendle Borough Council,Finance,Transport Related Expense,Diesel Oil,3202,FUELMATE LTD,A0090265,06/02/2024,FIN0339868,58.68,N,,N,N
Pendle Borough Council,Finance,Transport Related Expense,Diesel Oil,3202,FUELMATE LTD,A0090265,13/02/2024,FIN0339869,66.12,N,,N,N
Pendle Borough Council,Finance,Transport Related Expense,Diesel Oil,3202,FUELMATE LTD,A0090265,20/02/2024,FIN0339870,128.14,N,,N,N
Pendle Borough Council,Finance,Transport Related Expense,Diesel Oil,3202,FUELMATE LTD,A0090265,13/02/2024,FIN0339869,60.54,N,,N,N
Pendle Borough Council,Finance,Transport Related Expense,Diesel Oil,3202,FUELMATE LTD,A0090265,06/02/2024,FIN0339868,104.16,N,,N,N
Pendle Borough Council,Finance,Transport Related Expense,Diesel Oil,3202,FUELMATE LTD,A0090265,20/02/2024,FIN0339870,117.31,N,,N,N
Pendle Borough Council,Finance,Transport Related Expense,Diesel Oil,3202,FUELMATE LTD,A0090265,13/02/2024,FIN0339869,37,N,,N,N
Pendle Borough Council,Finance,Transport Related Expense,Diesel Oil,3202,FUELMATE LTD,A0090265,06/02/2024,FIN0339868,49.88,N,,N,N
Pendle Borough Council,Finance,Transport Related Expense,Diesel Oil,3202,FUELMATE LTD,A0090265,20/02/2024,FIN0339870,56.99,N,,N,N
Pendle Borough Council,Finance,Transport Related Expense,Diesel Oil,3202,FUELMATE LTD,A0090265,13/02/2024,FIN0339869,41.14,N,,N,N
Pendle Borough Council,Finance,Transport Related Expense,Diesel Oil,3202,FUELMATE LTD,A0090265,06/02/2024,FIN0339868,89.56,N,,N,N
Pendle Borough Council,Finance,Transport Related Expense,Diesel Oil,3202,FUELMATE LTD,A0090265,20/02/2024,FIN0339870,95.84,N,,N,N
Pendle Borough Council,Finance,Transport Related Expense,Diesel Oil,3202,FUELMATE LTD,A0090265,13/02/2024,FIN0339869,60.87,N,,N,N
Pendle Borough Council,Finance,Transport Related Expense,Diesel Oil,3202,FUELMATE LTD,A0090265,06/02/2024,FIN0339868,105.91,N,,N,N
Pendle Borough Council,Finance,Transport Related Expense,Diesel Oil,3202,FUELMATE LTD,A0090265,20/02/2024,FIN0339870,122.28,N,,N,N
Pendle Borough Council,Finance,Transport Related Expense,Diesel Oil,3202,FUELMATE LTD,A0090265,13/02/2024,FIN0339869,61.12,N,,N,N
Pendle Borough Council,Finance,Transport Related Expense,Diesel Oil,3202,FUELMATE LTD,A0090265,20/02/2024,FIN0339870,65.06,N,,N,N
Pendle Borough Council,Finance,Transport Related Expense,Diesel Oil,3202,FUELMATE LTD,A0090265,13/02/2024,FIN0339869,56.03,N,,N,N
Pendle Borough Council,Finance,Transport Related Expense,Diesel Oil,3202,FUELMATE LTD,A0090265,06/02/2024,FIN0339868,56.86,N,,N,N
Pendle Borough Council,Finance,Transport Related Expense,Diesel Oil,3202,FUELMATE LTD,A0090265,20/02/2024,FIN0339870,61.75,N,,N,N
Pendle Borough Council,Finance,Transport Related Expense,Diesel Oil,3202,FUELMATE LTD,A0090265,06/02/2024,FIN0339868,43.26,N,,N,N
Pendle Borough Council,Finance,Transport Related Expense,Diesel Oil,3202,FUELMATE LTD,A0090265,06/02/2024,FIN0339868,33.93,N,,N,N
Pendle Borough Council,Finance,Transport Related Expense,Diesel Oil,3202,FUELMATE LTD,A0090265,13/02/2024,FIN0339869,39.52,N,,N,N
Pendle Borough Council,Finance,Transport Related Expense,Diesel Oil,3202,FUELMATE LTD,A0090265,20/02/2024,FIN0339870,39.39,N,,N,N
Pendle Borough Council,Finance,Transport Related Expense,Diesel Oil,3202,FUELMATE LTD,A0090265,06/02/2024,FIN0339868,25.32,N,,N,N
Pendle Borough Council,Finance,Transport Related Expense,Diesel Oil,3202,FUELMATE LTD,A0090265,13/02/2024,FIN0339869,49.79,N,,N,N
Pendle Borough Council,Finance,Transport Related Expense,Diesel Oil,3202,FUELMATE LTD,A0090265,13/02/2024,FIN0339869,24.04,N,,N,N
Pendle Borough Council,Finance,Transport Related Expense,Diesel Oil,3202,FUELMATE LTD,A0090265,06/02/2024,FIN0339868,31.99,N,,N,N
Pendle Borough Council,Finance,Transport Related Expense,Diesel Oil,3202,FUELMATE LTD,A0090265,06/02/2024,FIN0339868,41.75,N,,N,N
Pendle Borough Council,Finance,Transport Related Expense,Diesel Oil,3202,FUELMATE LTD,A0090265,13/02/2024,FIN0339869,62.49,N,,N,N
Pendle Borough Council,Finance,Transport Related Expense,Diesel Oil,3202,FUELMATE LTD,A0090265,20/02/2024,FIN0339870,64.6,N,,N,N
Pendle Borough Council,Finance,Transport Related Expense,Diesel Oil,3202,FUELMATE LTD,A0090265,20/02/2024,FIN0339870,16.82,N,,N,N
Pendle Borough Council,Finance,Transport Related Expense,Diesel Oil,3202,FUELMATE LTD,A0090265,13/02/2024,FIN0339869,59.47,N,,N,N
Pendle Borough Council,Finance,Transport Related Expense,Diesel Oil,3202,FUELMATE LTD,A0090265,13/02/2024,FIN0339869,42.09,N,,N,N
Pendle Borough Council,Finance,Transport Related Expense,Diesel Oil,3202,FUELMATE LTD,A0090265,13/02/2024,FIN0339869,29.4,N,,N,N
Pendle Borough Council,Finance,Transport Related Expense,Diesel Oil,3202,FUELMATE LTD,A0090265,20/02/2024,FIN0339870,106.29,N,,N,N
Pendle Borough Council,Economic Growth,Supplies and Services,Other Expenses,4705,SALTERFORTH PARISH COUNCIL,A0090441,22/02/2024,ECO0339615,1738.35,N,,N,N
Pendle Borough Council,Policy & Commissioning,Supplies and Services,Other Expenses,4705,FULLY FORMED FILMS LIMITED,A0090447,15/02/2024,POL0339403,900,N,,N,N
Pendle Borough Council,Operational Services,Transport Related Expense,Tprt : Repairs : General,3105,M J SUPPLIES,A0090466,15/02/2024,OPS0339409,38.46,N,,N,N
Pendle Borough Council,Operational Services,Supplies and Services,Other Expenses,4705,R S ASBESTOS LIMITED,A0090548,08/02/2024,OPS0339257,595,N,,N,N
Pendle Borough Council,Operational Services,Supplies and Services,Other Expenses,4705,R S ASBESTOS LIMITED,A0090548,08/02/2024,OPS0339275,695,N,,N,N
Pendle Borough Council,Revenues Services,Supplies and Services,DSS Collection Fee,4414,PS&P LTD,A0090720,01/02/2024,TRE0339111,4,N,,N,N
Pendle Borough Council,Revenues Services,Supplies and Services,DSS Collection Fee,4414,PS&P LTD,A0090720,08/02/2024,TRE0339231,280.13,N,,N,N
Pendle Borough Council,Finance,Capital Costs,Capital: Construction: Conversion/Refu,CD57,B & E BOYS LIMITED,A0090790,22/02/2024,FIN0339614,129556.62,N,,N,N
Pendle Borough Council,Operational Services,Premises Related Expense,Bldgs : R & M : Day To Day,2001,SUPER AUTO SAVER,A0090951,22/02/2024,OPS0339562,107.04,N,,N,N
Pendle Borough Council,Operational Services,Transport Related Expense,Tprt : Repairs : General,3105,SUPER AUTO SAVER,A0090951,29/02/2024,OPS0339742,7.5,N,,N,N
Pendle Borough Council,Policy & Commissioning,Supplies and Services,Grant Funding,4737,PENDLE NEW NEIGHBOURS,A0091208,01/02/2024,POL0339126,4000,N,,N,N
Pendle Borough Council,Operational Services,Transport Related Expense,Tprt : Repairs : General,3105,QUARTIX LIMITED,A0091353,29/02/2024,OPS0339791,43.62,N,,N,N
Pendle Borough Council,Operational Services,Transport Related Expense,Tprt : Repairs : General,3105,QUARTIX LIMITED,A0091353,29/02/2024,OPS0339791,43.62,N,,N,N
Pendle Borough Council,Operational Services,Transport Related Expense,Tprt : Repairs : General,3105,QUARTIX LIMITED,A0091353,29/02/2024,OPS0339791,43.62,N,,N,N
Pendle Borough Council,Operational Services,Transport Related Expense,Tprt : Repairs : General,3105,QUARTIX LIMITED,A0091353,29/02/2024,OPS0339791,43.62,N,,N,N
Pendle Borough Council,Operational Services,Transport Related Expense,Tprt : Repairs : General,3105,QUARTIX LIMITED,A0091353,29/02/2024,OPS0339791,43.62,N,,N,N
Pendle Borough Council,Operational Services,Transport Related Expense,Tprt : Repairs : General,3105,QUARTIX LIMITED,A0091353,29/02/2024,OPS0339791,43.62,N,,N,N
Pendle Borough Council,Operational Services,Transport Related Expense,Tprt : Repairs : General,3105,QUARTIX LIMITED,A0091353,29/02/2024,OPS0339791,43.62,N,,N,N
Pendle Borough Council,Operational Services,Transport Related Expense,Tprt : Repairs : General,3105,QUARTIX LIMITED,A0091353,29/02/2024,OPS0339791,43.62,N,,N,N
Pendle Borough Council,Operational Services,Transport Related Expense,Tprt : Repairs : General,3105,QUARTIX LIMITED,A0091353,29/02/2024,OPS0339791,43.62,N,,N,N
Pendle Borough Council,Operational Services,Transport Related Expense,Tprt : Repairs : General,3105,QUARTIX LIMITED,A0091353,29/02/2024,OPS0339791,43.62,N,,N,N
Pendle Borough Council,Operational Services,Transport Related Expense,Tprt : Repairs : General,3105,QUARTIX LIMITED,A0091353,29/02/2024,OPS0339791,43.62,N,,N,N
Pendle Borough Council,Operational Services,Transport Related Expense,Tprt : Repairs : General,3105,QUARTIX LIMITED,A0091353,29/02/2024,OPS0339791,43.62,N,,N,N
Pendle Borough Council,Operational Services,Transport Related Expense,Tprt : Repairs : General,3105,QUARTIX LIMITED,A0091353,29/02/2024,OPS0339791,43.62,N,,N,N
Pendle Borough Council,Operational Services,Transport Related Expense,Tprt : Repairs : General,3105,QUARTIX LIMITED,A0091353,29/02/2024,OPS0339791,43.62,N,,N,N
Pendle Borough Council,Operational Services,Transport Related Expense,Tprt : Repairs : General,3105,QUARTIX LIMITED,A0091353,29/02/2024,OPS0339791,43.62,N,,N,N
Pendle Borough Council,Housing & Environmental Health,Capital Costs,Ren Grant : 1996 Act,CH22,THE EXCELLENT RAMP SYSTEM LIMITED,A0091363,01/02/2024,HEH0339107,5875,N,,N,N
Pendle Borough Council,Operational Services,Transport Related Expense,Diesel Oil,3202,WCF LIMITED,A0091385,29/02/2024,OPS0339713,532,N,,N,N
Pendle Borough Council,Operational Services,Transport Related Expense,Diesel Oil,3202,WCF LIMITED,A0091385,01/02/2024,OPS0339169,560,N,,N,N
Pendle Borough Council,Operational Services,Premises Related Expense,Grounds : R & M : Day to Day : Routine,2101,MARTINS COUNTRYSIDE CONTRACTING LIMITED,A0091415,01/02/2024,OPS0339148,300,N,,N,N
Pendle Borough Council,I.T Services,Supplies and Services,EFM : Office and computer equipment,4002,STORM TECHNOLOGIES LIMITED,A0091493,15/02/2024,ITS0339463,745,N,,N,N
Pendle Borough Council,I.T Services,Supplies and Services,EFM : Office and computer equipment,4002,STORM TECHNOLOGIES LIMITED,A0091493,15/02/2024,ITS0339462,278,N,,N,N
Pendle Borough Council,Operational Services,Agency Staff,Emp : Agency Wages,1004,NW RECRUITMENT SERVICES LIMITED,A0091588,29/02/2024,OPS0339738,1078.44,N,,N,N
Pendle Borough Council,Operational Services,Agency Staff,Emp : Agency Wages,1004,NW RECRUITMENT SERVICES LIMITED,A0091588,22/02/2024,OPS0339585,1258.18,N,,N,N
Pendle Borough Council,Operational Services,Agency Staff,Emp : Agency Wages,1004,NW RECRUITMENT SERVICES LIMITED,A0091588,15/02/2024,OPS0339413,1683.02,N,,N,N
Pendle Borough Council,Operational Services,Agency Staff,Emp : Agency Wages,1004,NW RECRUITMENT SERVICES LIMITED,A0091588,22/02/2024,OPS0339585,931.38,N,,N,N
Pendle Borough Council,Operational Services,Agency Staff,Emp : Agency Wages,1004,NW RECRUITMENT SERVICES LIMITED,A0091588,29/02/2024,OPS0339738,1204.58,N,,N,N
Pendle Borough Council,Operational Services,Agency Staff,Emp : Agency Wages,1004,NW RECRUITMENT SERVICES LIMITED,A0091588,15/02/2024,OPS0339413,1210.46,N,,N,N
Pendle Borough Council,Operational Services,Agency Staff,Emp : Agency Wages,1004,NW RECRUITMENT SERVICES LIMITED,A0091588,01/02/2024,OPS0339141,2614.4,N,,N,N
Pendle Borough Council,Operational Services,Agency Staff,Emp : Agency Wages,1004,NW RECRUITMENT SERVICES LIMITED,A0091588,08/02/2024,OPS0339303,3030.08,N,,N,N
Pendle Borough Council,Legal & Democratic Services,Agency Staff,Emp : Agency Wages,1004,NW RECRUITMENT SERVICES LIMITED,A0091588,08/02/2024,LAD0339288,163.4,N,,N,N
Pendle Borough Council,Legal & Democratic Services,Agency Staff,Emp : Agency Wages,1004,NW RECRUITMENT SERVICES LIMITED,A0091588,15/02/2024,LAD0339439,224.68,N,,N,N
Pendle Borough Council,Legal & Democratic Services,Agency Staff,Emp : Agency Wages,1004,NW RECRUITMENT SERVICES LIMITED,A0091588,01/02/2024,LAD0339179,371.74,N,,N,N
Pendle Borough Council,Operational Services,Agency Staff,Emp : Agency Wages,1004,NW RECRUITMENT SERVICES LIMITED,A0091588,29/02/2024,OPS0339732,143.28,N,,N,N
Pendle Borough Council,Operational Services,Agency Staff,Emp : Agency Wages,1004,NW RECRUITMENT SERVICES LIMITED,A0091588,08/02/2024,OPS0339305,159.2,N,,N,N
Pendle Borough Council,Operational Services,Agency Staff,Emp : Agency Wages,1004,NW RECRUITMENT SERVICES LIMITED,A0091588,22/02/2024,OPS0339569,206.96,N,,N,N
Pendle Borough Council,Operational Services,Agency Staff,Emp : Agency Wages,1004,NW RECRUITMENT SERVICES LIMITED,A0091588,22/02/2024,OPS0339574,206.96,N,,N,N
Pendle Borough Council,Operational Services,Agency Staff,Emp : Agency Wages,1004,NW RECRUITMENT SERVICES LIMITED,A0091588,01/02/2024,OPS0339167,3882.73,N,,N,N
Pendle Borough Council,Operational Services,Agency Staff,Emp : Agency Wages,1004,NW RECRUITMENT SERVICES LIMITED,A0091588,29/02/2024,OPS0339726,3955.17,N,,N,N
Pendle Borough Council,Operational Services,Agency Staff,Emp : Agency Wages,1004,NW RECRUITMENT SERVICES LIMITED,A0091588,29/02/2024,OPS0339728,4093.35,N,,N,N
Pendle Borough Council,Operational Services,Agency Staff,Emp : Agency Wages,1004,NW RECRUITMENT SERVICES LIMITED,A0091588,08/02/2024,OPS0339270,4105.06,N,,N,N
Pendle Borough Council,Operational Services,Agency Staff,Emp : Agency Wages,1004,NW RECRUITMENT SERVICES LIMITED,A0091588,01/02/2024,OPS0339166,4123.91,N,,N,N
Pendle Borough Council,Operational Services,Agency Staff,Emp : Agency Wages,1004,NW RECRUITMENT SERVICES LIMITED,A0091588,29/02/2024,OPS0339727,4306.04,N,,N,N
Pendle Borough Council,Operational Services,Agency Staff,Emp : Agency Wages,1004,NW RECRUITMENT SERVICES LIMITED,A0091588,29/02/2024,OPS0339727,2696.96,N,,N,N
Pendle Borough Council,Operational Services,Agency Staff,Emp : Agency Wages,1004,NW RECRUITMENT SERVICES LIMITED,A0091588,01/02/2024,OPS0339167,2911.66,N,,N,N
Pendle Borough Council,Operational Services,Agency Staff,Emp : Agency Wages,1004,NW RECRUITMENT SERVICES LIMITED,A0091588,08/02/2024,OPS0339270,3049.66,N,,N,N
Pendle Borough Council,Operational Services,Agency Staff,Emp : Agency Wages,1004,NW RECRUITMENT SERVICES LIMITED,A0091588,29/02/2024,OPS0339728,3220.89,N,,N,N
Pendle Borough Council,Operational Services,Agency Staff,Emp : Agency Wages,1004,NW RECRUITMENT SERVICES LIMITED,A0091588,29/02/2024,OPS0339726,3431.91,N,,N,N
Pendle Borough Council,Operational Services,Agency Staff,Emp : Agency Wages,1004,NW RECRUITMENT SERVICES LIMITED,A0091588,01/02/2024,OPS0339166,3879.11,N,,N,N
Pendle Borough Council,Operational Services,Agency Staff,Emp : Agency Wages,1004,NW RECRUITMENT SERVICES LIMITED,A0091588,08/02/2024,OPS0339270,719.04,N,,N,N
Pendle Borough Council,Operational Services,Agency Staff,Emp : Agency Wages,1004,NW RECRUITMENT SERVICES LIMITED,A0091588,01/02/2024,OPS0339167,1286.51,N,,N,N
Pendle Borough Council,Operational Services,Agency Staff,Emp : Agency Wages,1004,NW RECRUITMENT SERVICES LIMITED,A0091588,29/02/2024,OPS0339727,1344.47,N,,N,N
Pendle Borough Council,Operational Services,Agency Staff,Emp : Agency Wages,1004,NW RECRUITMENT SERVICES LIMITED,A0091588,29/02/2024,OPS0339726,1574.45,N,,N,N
Pendle Borough Council,Operational Services,Agency Staff,Emp : Agency Wages,1004,NW RECRUITMENT SERVICES LIMITED,A0091588,29/02/2024,OPS0339728,2111.77,N,,N,N
Pendle Borough Council,Operational Services,Agency Staff,Emp : Agency Wages,1004,NW RECRUITMENT SERVICES LIMITED,A0091588,01/02/2024,OPS0339166,2282.34,N,,N,N
Pendle Borough Council,Operational Services,Transport Related Expense,Tprt : Annual Hire Charge,3601,GO PLANT FLEET SERVICES LIMITED,A0091600,08/02/2024,OPS0339228,3540.62,N,,N,N
Pendle Borough Council,Operational Services,Transport Related Expense,Tprt : Annual Hire Charge,3601,GO PLANT FLEET SERVICES LIMITED,A0091600,08/02/2024,OPS0339228,3540.62,N,,N,N
Pendle Borough Council,Operational Services,Transport Related Expense,Tprt : Annual Hire Charge,3601,GO PLANT FLEET SERVICES LIMITED,A0091600,08/02/2024,OPS0339228,3540.62,N,,N,N
Pendle Borough Council,Operational Services,Transport Related Expense,Tprt : Annual Hire Charge,3601,GO PLANT FLEET SERVICES LIMITED,A0091600,08/02/2024,OPS0339228,3540.62,N,,N,N
Pendle Borough Council,Operational Services,Transport Related Expense,Tprt : Annual Hire Charge,3601,GO PLANT FLEET SERVICES LIMITED,A0091600,08/02/2024,OPS0339228,3540.62,N,,N,N
Pendle Borough Council,Operational Services,Transport Related Expense,Tprt : Annual Hire Charge,3601,GO PLANT FLEET SERVICES LIMITED,A0091600,08/02/2024,OPS0339228,3344.64,N,,N,N
Pendle Borough Council,Operational Services,Transport Related Expense,Tprt : Annual Hire Charge,3601,GO PLANT FLEET SERVICES LIMITED,A0091600,08/02/2024,OPS0339228,3540.62,N,,N,N
Pendle Borough Council,Operational Services,Transport Related Expense,Tprt : Annual Hire Charge,3601,GO PLANT FLEET SERVICES LIMITED,A0091600,08/02/2024,OPS0339228,3540.62,N,,N,N
Pendle Borough Council,Operational Services,Transport Related Expense,Tprt : Annual Hire Charge,3601,GO PLANT FLEET SERVICES LIMITED,A0091600,08/02/2024,OPS0339228,3549.74,N,,N,N
Pendle Borough Council,Operational Services,Transport Related Expense,Tprt : Annual Hire Charge,3601,GO PLANT FLEET SERVICES LIMITED,A0091600,08/02/2024,OPS0339228,3549.74,N,,N,N
Pendle Borough Council,Operational Services,Transport Related Expense,Tprt : Annual Hire Charge,3601,GO PLANT FLEET SERVICES LIMITED,A0091600,08/02/2024,OPS0339228,3549.74,N,,N,N
Pendle Borough Council,Operational Services,Transport Related Expense,Tprt : Annual Hire Charge,3601,GO PLANT FLEET SERVICES LIMITED,A0091600,08/02/2024,OPS0339228,3497.07,N,,N,N
Pendle Borough Council,Operational Services,Transport Related Expense,Tprt : Annual Hire Charge,3601,GO PLANT FLEET SERVICES LIMITED,A0091600,08/02/2024,OPS0339228,3393,N,,N,N
Pendle Borough Council,Operational Services,Transport Related Expense,Tprt : Annual Hire Charge,3601,GO PLANT FLEET SERVICES LIMITED,A0091600,08/02/2024,OPS0339228,2654.17,N,,N,N
Pendle Borough Council,Operational Services,Transport Related Expense,Tprt : Annual Hire Charge,3601,GO PLANT FLEET SERVICES LIMITED,A0091600,08/02/2024,OPS0339228,1981.53,N,,N,N
Pendle Borough Council,Operational Services,Transport Related Expense,Tprt : Annual Hire Charge,3601,GO PLANT FLEET SERVICES LIMITED,A0091600,08/02/2024,OPS0339228,1981.53,N,,N,N
Pendle Borough Council,Operational Services,Transport Related Expense,Tprt : Annual Hire Charge,3601,GO PLANT FLEET SERVICES LIMITED,A0091600,08/02/2024,OPS0339228,1981.53,N,,N,N
Pendle Borough Council,Operational Services,Transport Related Expense,Tprt : Annual Hire Charge,3601,GO PLANT FLEET SERVICES LIMITED,A0091600,08/02/2024,OPS0339228,1981.53,N,,N,N
Pendle Borough Council,Operational Services,Transport Related Expense,Tprt : Annual Hire Charge,3601,GO PLANT FLEET SERVICES LIMITED,A0091600,08/02/2024,OPS0339228,1981.53,N,,N,N
Pendle Borough Council,Operational Services,Transport Related Expense,Tprt : Annual Hire Charge,3601,GO PLANT FLEET SERVICES LIMITED,A0091600,08/02/2024,OPS0339228,509.54,N,,N,N
Pendle Borough Council,Operational Services,Transport Related Expense,Tprt : Annual Hire Charge,3601,GO PLANT FLEET SERVICES LIMITED,A0091600,08/02/2024,OPS0339228,598.81,N,,N,N
Pendle Borough Council,Operational Services,Transport Related Expense,Tprt : Annual Hire Charge,3601,GO PLANT FLEET SERVICES LIMITED,A0091600,08/02/2024,OPS0339228,650,N,,N,N
Pendle Borough Council,Operational Services,Transport Related Expense,Tprt : Annual Hire Charge,3601,GO PLANT FLEET SERVICES LIMITED,A0091600,08/02/2024,OPS0339228,598.81,N,,N,N
Pendle Borough Council,Operational Services,Transport Related Expense,Tprt : Annual Hire Charge,3601,GO PLANT FLEET SERVICES LIMITED,A0091600,08/02/2024,OPS0339228,598.81,N,,N,N
Pendle Borough Council,Operational Services,Transport Related Expense,Tprt : Annual Hire Charge,3601,GO PLANT FLEET SERVICES LIMITED,A0091600,08/02/2024,OPS0339228,650,N,,N,N
Pendle Borough Council,Operational Services,Transport Related Expense,Tprt : Annual Hire Charge,3601,GO PLANT FLEET SERVICES LIMITED,A0091600,08/02/2024,OPS0339228,598.81,N,,N,N
Pendle Borough Council,Operational Services,Transport Related Expense,Tprt : Annual Hire Charge,3601,GO PLANT FLEET SERVICES LIMITED,A0091600,08/02/2024,OPS0339228,239.53,N,,N,N
Pendle Borough Council,Operational Services,Transport Related Expense,Tprt : Annual Hire Charge,3601,GO PLANT FLEET SERVICES LIMITED,A0091600,08/02/2024,OPS0339228,239.53,N,,N,N
Pendle Borough Council,Operational Services,Transport Related Expense,Tprt : Annual Hire Charge,3601,GO PLANT FLEET SERVICES LIMITED,A0091600,08/02/2024,OPS0339228,239.53,N,,N,N
Pendle Borough Council,Operational Services,Transport Related Expense,Tprt : Annual Hire Charge,3601,GO PLANT FLEET SERVICES LIMITED,A0091600,08/02/2024,OPS0339228,239.53,N,,N,N
Pendle Borough Council,Operational Services,Transport Related Expense,Tprt : Annual Hire Charge,3601,GO PLANT FLEET SERVICES LIMITED,A0091600,08/02/2024,OPS0339228,239.53,N,,N,N
Pendle Borough Council,Operational Services,Transport Related Expense,Tprt : Annual Hire Charge,3601,GO PLANT FLEET SERVICES LIMITED,A0091600,08/02/2024,OPS0339228,239.53,N,,N,N
Pendle Borough Council,Operational Services,Transport Related Expense,Tprt : Annual Hire Charge,3601,GO PLANT FLEET SERVICES LIMITED,A0091600,08/02/2024,OPS0339228,239.53,N,,N,N
Pendle Borough Council,Operational Services,Transport Related Expense,Tprt : Annual Hire Charge,3601,GO PLANT FLEET SERVICES LIMITED,A0091600,08/02/2024,OPS0339228,339.69,N,,N,N
Pendle Borough Council,Operational Services,Transport Related Expense,Tprt : Annual Hire Charge,3601,GO PLANT FLEET SERVICES LIMITED,A0091600,08/02/2024,OPS0339228,592.28,N,,N,N
Pendle Borough Council,Operational Services,Transport Related Expense,Tprt : Annual Hire Charge,3601,GO PLANT FLEET SERVICES LIMITED,A0091600,08/02/2024,OPS0339228,592.28,N,,N,N
Pendle Borough Council,Operational Services,Transport Related Expense,Tprt : Annual Hire Charge,3601,GO PLANT FLEET SERVICES LIMITED,A0091600,08/02/2024,OPS0339228,592.28,N,,N,N
Pendle Borough Council,Operational Services,Transport Related Expense,Tprt : Annual Hire Charge,3601,GO PLANT FLEET SERVICES LIMITED,A0091600,08/02/2024,OPS0339228,592.28,N,,N,N
Pendle Borough Council,Operational Services,Transport Related Expense,Tprt : Annual Hire Charge,3601,GO PLANT FLEET SERVICES LIMITED,A0091600,08/02/2024,OPS0339228,592.28,N,,N,N
Pendle Borough Council,Operational Services,Transport Related Expense,Tprt : Annual Hire Charge,3601,GO PLANT FLEET SERVICES LIMITED,A0091600,08/02/2024,OPS0339228,535.67,N,,N,N
Pendle Borough Council,Operational Services,Transport Related Expense,Tprt : Annual Hire Charge,3601,GO PLANT FLEET SERVICES LIMITED,A0091600,08/02/2024,OPS0339228,239.53,N,,N,N
Pendle Borough Council,Operational Services,Transport Related Expense,Tprt : Annual Hire Charge,3601,GO PLANT FLEET SERVICES LIMITED,A0091600,08/02/2024,OPS0339228,496.4,N,,N,N
Pendle Borough Council,Operational Services,Transport Related Expense,Tprt : Annual Hire Charge,3601,GO PLANT FLEET SERVICES LIMITED,A0091600,08/02/2024,OPS0339228,496.4,N,,N,N
Pendle Borough Council,Operational Services,Supplies and Services,Grant Funding,4737,BARROWFORD PRIMARY SCHOOL,A0091604,29/02/2024,OPS0339734,1065,N,,N,N
Pendle Borough Council,Housing & Environmental Health,,Housing Impts/Cap Repairs,0104,RHEA PROJECTS LIMITED,A0091628,01/02/2024,HEH0339105,1970,N,,N,N
Pendle Borough Council,Housing & Environmental Health,,Housing Impts/Cap Repairs,0104,RHEA PROJECTS LIMITED,A0091628,15/02/2024,HEH0339438,1970,N,,N,N
Pendle Borough Council,Housing & Environmental Health,,Housing Impts/Cap Repairs,0104,RHEA PROJECTS LIMITED,A0091628,22/02/2024,HEH0339598,1970,N,,N,N
Pendle Borough Council,Housing & Environmental Health,,Housing Impts/Cap Repairs,0104,RHEA PROJECTS LIMITED,A0091628,22/02/2024,HEH0339597,2795,N,,N,N
Pendle Borough Council,Housing & Environmental Health,Supplies and Services,Grants/Contributions,4739,RHEA PROJECTS LIMITED,A0091628,15/02/2024,HEH0339402,10000,N,,N,N
Pendle Borough Council,Housing & Environmental Health,Supplies and Services,Grant Funding,4737,COLNE PARISH CHURCH ST BARTHOLOMEW,A0091630,01/02/2024,HEH0339122,7500,N,,N,N
Pendle Borough Council,Finance,,Fees Income : Non-VATable,9302,COLNE BID LIMITED,A0091663,22/02/2024,FIN0339546,-3100.62,N,,N,N
Pendle Borough Council,Finance,,Paid in the Year,PD03,COLNE BID LIMITED,A0091663,22/02/2024,FIN0339546,-88962.54,N,,N,N
Pendle Borough Council,Finance,,Paid in the Year,PD03,COLNE BID LIMITED,A0091663,22/02/2024,FIN0339546,92588.8,N,,N,N
Pendle Borough Council,Economic Growth,Premises Related Expense,Bldgs : R & M : Day To Day,2001,A&G LANDSCAPES & GROUNDWORKS LIMITED,A0091675,29/02/2024,ECO0339787,200,N,,N,N
Pendle Borough Council,Operational Services,Premises Related Expense,Grounds : R & M : Day to Day : Routine,2101,A&G LANDSCAPES & GROUNDWORKS LIMITED,A0091675,08/02/2024,OPS0339302,61.24,N,,N,N
Pendle Borough Council,Operational Services,Premises Related Expense,Grounds : R & M : Day to Day : Routine,2101,A&G LANDSCAPES & GROUNDWORKS LIMITED,A0091675,08/02/2024,OPS0339302,88.76,N,,N,N
Pendle Borough Council,Operational Services,Premises Related Expense,Grounds : R & M : Day to Day : Routine,2101,A&G LANDSCAPES & GROUNDWORKS LIMITED,A0091675,08/02/2024,OPS0339302,79.62,N,,N,N
Pendle Borough Council,Operational Services,Premises Related Expense,Grounds : R & M : Day to Day : Routine,2101,A&G LANDSCAPES & GROUNDWORKS LIMITED,A0091675,08/02/2024,OPS0339302,115.38,N,,N,N
Pendle Borough Council,Operational Services,Capital Costs,Capital : Payments,CD14,A&G LANDSCAPES & GROUNDWORKS LIMITED,A0091675,08/02/2024,OPS0339302,81.65,N,,N,N
Pendle Borough Council,Operational Services,Capital Costs,Capital : Payments,CD14,A&G LANDSCAPES & GROUNDWORKS LIMITED,A0091675,08/02/2024,OPS0339302,118.35,N,,N,N
Pendle Borough Council,Economic Growth,,Paid in the Year,PD03,A&G LANDSCAPES & GROUNDWORKS LIMITED,A0091675,29/02/2024,ECO0339788,200,N,,N,N
Pendle Borough Council,Economic Growth,,Paid in the Year,PD03,A&G LANDSCAPES & GROUNDWORKS LIMITED,A0091675,29/02/2024,ECO0339788,250,N,,N,N
Pendle Borough Council,Economic Growth,,Paid in the Year,PD03,A&G LANDSCAPES & GROUNDWORKS LIMITED,A0091675,22/02/2024,ECO0339608,1000,N,,N,N
Pendle Borough Council,Economic Growth,,Paid in the Year,PD03,A&G LANDSCAPES & GROUNDWORKS LIMITED,A0091675,22/02/2024,ECO0339608,8233.05,N,,N,N
Pendle Borough Council,Operational Services,,Paid in the Year,PD03,A&G LANDSCAPES & GROUNDWORKS LIMITED,A0091675,08/02/2024,OPS0339302,122.49,N,,N,N
Pendle Borough Council,Operational Services,,Paid in the Year,PD03,A&G LANDSCAPES & GROUNDWORKS LIMITED,A0091675,08/02/2024,OPS0339302,177.51,N,,N,N
Pendle Borough Council,Housing & Environmental Health,Capital Costs,Ren Grant : 1996 Act,ch22,BRYAN LEE BUILDING CONTRACTORS LIMITED,A0091749,29/02/2024,HEH0339722,13716.01,N,,N,N
Pendle Borough Council,Housing & Environmental Health,Agency Staff,Emp : Agency Wages,1004,THE OYSTER PARTNERSHIP LIMITED,A0091781,08/02/2024,HEH0339216,1484.85,N,,N,N
Pendle Borough Council,Housing & Environmental Health,Agency Staff,Emp : Agency Wages,1004,THE OYSTER PARTNERSHIP LIMITED,A0091781,15/02/2024,HEH0339395,1492.16,N,,N,N
Pendle Borough Council,Housing & Environmental Health,Agency Staff,Emp : Agency Wages,1004,THE OYSTER PARTNERSHIP LIMITED,A0091781,29/02/2024,HEH0339659,1526.1,N,,N,N
Pendle Borough Council,Housing & Environmental Health,Agency Staff,Emp : Agency Wages,1004,THE OYSTER PARTNERSHIP LIMITED,A0091781,15/02/2024,HEH0339476,1528.3,N,,N,N
Pendle Borough Council,Housing & Environmental Health,Agency Staff,Emp : Agency Wages,1004,THE OYSTER PARTNERSHIP LIMITED,A0091781,29/02/2024,HEH0339793,1538.94,N,,N,N
Pendle Borough Council,"Planning, Building Control & Regulatory Services",Agency Staff,Emp : Agency Wages,1004,THE OYSTER PARTNERSHIP LIMITED,A0091781,01/02/2024,PBC0338960,1162.14,N,,N,N
Pendle Borough Council,"Planning, Building Control & Regulatory Services",Agency Staff,Emp : Agency Wages,1004,THE OYSTER PARTNERSHIP LIMITED,A0091781,08/02/2024,PBC0339134,1344,N,,N,N
Pendle Borough Council,"Planning, Building Control & Regulatory Services",Agency Staff,Emp : Agency Wages,1004,THE OYSTER PARTNERSHIP LIMITED,A0091781,29/02/2024,PBC0339453,1428,N,,N,N
Pendle Borough Council,"Planning, Building Control & Regulatory Services",Agency Staff,Emp : Agency Wages,1004,THE OYSTER PARTNERSHIP LIMITED,A0091781,29/02/2024,PBC0339523,1498.14,N,,N,N
Pendle Borough Council,"Planning, Building Control & Regulatory Services",Agency Staff,Emp : Agency Wages,1004,THE OYSTER PARTNERSHIP LIMITED,A0091781,29/02/2024,PBC0339691,1525.86,N,,N,N
Pendle Borough Council,"Planning, Building Control & Regulatory Services",Supplies and Services,Consultants Fees,4401,THE OYSTER PARTNERSHIP LIMITED,A0091781,08/02/2024,PBC0339236,1554,N,,N,N
Pendle Borough Council,Housing & Environmental Health,Agency Staff,Emp : Agency Wages,1004,G2 RECRUITMENT SOLUTIONS,A0091827,01/02/2024,HEH0339050,11946.51,N,,N,N
Pendle Borough Council,Property Services,Premises Related Expense,Water & Sewerage,2501,BUSINESS STREAM,A0091916,15/02/2024,EST0338749,-48.31,N,,N,N
Pendle Borough Council,Property Services,Premises Related Expense,Water & Sewerage,2501,BUSINESS STREAM,A0091916,15/02/2024,EST0338749,75,N,,N,N
Pendle Borough Council,Property Services,Premises Related Expense,Water & Sewerage,2501,BUSINESS STREAM,A0091916,15/02/2024,EST0339330,12.65,N,,N,N
Pendle Borough Council,Property Services,Premises Related Expense,Water & Sewerage,2501,BUSINESS STREAM,A0091916,15/02/2024,EST4006772,-168.53,N,,N,N
Pendle Borough Council,Property Services,Premises Related Expense,Water & Sewerage,2501,BUSINESS STREAM,A0091916,15/02/2024,EST0338748,32.12,N,,N,N
Pendle Borough Council,Property Services,Premises Related Expense,Water & Sewerage,2501,BUSINESS STREAM,A0091916,22/02/2024,EST0339645,316.69,N,,N,N
Pendle Borough Council,Property Services,Premises Related Expense,Water & Sewerage,2501,BUSINESS STREAM,A0091916,15/02/2024,EST0339485,351.45,N,,N,N
Pendle Borough Council,Housing & Environmental Health,Capital Costs,Ren Grant : 1996 Act,CH22,DYNAMIC PLUMBING AND HEATING,A0091941,01/02/2024,HEH0339180,120,N,,N,N
Pendle Borough Council,Housing & Environmental Health,Capital Costs,Ren Grant : 1996 Act,CH22,DYNAMIC PLUMBING AND HEATING,A0091941,15/02/2024,HEH0339433,7606,N,,N,N
Pendle Borough Council,Housing & Environmental Health,Capital Costs,Ren Grant : 1996 Act,ch22,DYNAMIC PLUMBING AND HEATING,A0091941,15/02/2024,HEH0339431,10701.2,N,,N,N
Pendle Borough Council,Housing & Environmental Health,Capital Costs,Ren Grant : 1996 Act,CH22,BUILDEASI NW LTD,A0091945,29/02/2024,HEH0339658,5975.9,N,,N,N
Pendle Borough Council,Operational Services,Supplies and Services,Other Expenses,4705,PICK PROTECTION,A0091948,01/02/2024,OPS0339176,40,N,,N,N
Pendle Borough Council,Policy & Commissioning,Supplies and Services,Grant Funding,4737,PENDLE FOOD FOR ALL FOOD CLUB,A0091966,01/02/2024,POL0339124,7500,N,,N,N
Pendle Borough Council,Operational Services,,Stock : Purchases,PJ01,SMI GROUP UK,A0091999,08/02/2024,OPS0339260,237,N,,N,N
Pendle Borough Council,Operational Services,,Stock : Purchases,PJ01,SMI GROUP UK,A0091999,29/02/2024,OPS0339719,411.2,N,,N,N
Pendle Borough Council,Human Resources,Indirect Employee Expenses,Emp : Medical Expenses,1236,SHARP PHYSIOTHERAPY LIMITED,A0092384,22/02/2024,PER0339520,130,N,,N,N
Pendle Borough Council,Human Resources,Indirect Employee Expenses,Emp : Medical Expenses,1236,SHARP PHYSIOTHERAPY LIMITED,A0092384,15/02/2024,PER0339445,170,N,,N,N
Pendle Borough Council,Human Resources,Indirect Employee Expenses,Emp : Medical Expenses,1236,SHARP PHYSIOTHERAPY LIMITED,A0092384,22/02/2024,PER0339519,170,N,,N,N
Pendle Borough Council,Human Resources,Indirect Employee Expenses,Emp : Medical Expenses,1236,SHARP PHYSIOTHERAPY LIMITED,A0092384,29/02/2024,PER0339770,170,N,,N,N
Pendle Borough Council,Housing & Environmental Health,,Housing Impts/Cap Repairs,0104,AZTEC GAS LTD,A0092485,15/02/2024,HEH0339407,1997,N,,N,N
Pendle Borough Council,Housing & Environmental Health,,Housing Impts/Cap Repairs,0104,AZTEC GAS LTD,A0092485,15/02/2024,HEH0339404,2540.25,N,,N,N
Pendle Borough Council,Finance,Agency Costs,Internal Audit Outsourced Contract,5304,LIVERPOOL UNIVERSITY HOSPITALS NHS FOUNDATIONTRUST,A0092555,01/02/2024,FIN0339215,1785,N,,N,N
Pendle Borough Council,Finance,Agency Costs,Internal Audit Outsourced Contract,5304,LIVERPOOL UNIVERSITY HOSPITALS NHS FOUNDATIONTRUST,A0092555,29/02/2024,FIN0339798,1785,N,,N,N
Pendle Borough Council,Finance,Agency Costs,Internal Audit Outsourced Contract,5304,LIVERPOOL UNIVERSITY HOSPITALS NHS FOUNDATIONTRUST,A0092555,29/02/2024,FIN0339798,2806.33,N,,N,N
Pendle Borough Council,Finance,Agency Costs,Internal Audit Outsourced Contract,5304,LIVERPOOL UNIVERSITY HOSPITALS NHS FOUNDATIONTRUST,A0092555,01/02/2024,FIN0339215,15717.5,N,,N,N
Pendle Borough Council,Finance,Agency Costs,Internal Audit Outsourced Contract,5304,LIVERPOOL UNIVERSITY HOSPITALS NHS FOUNDATIONTRUST,A0092555,29/02/2024,FIN0339798,16481.17,N,,N,N
Pendle Borough Council,Policy & Commissioning,Supplies and Services,Consultants Fees,4401,PAVILLION COMMUNITY HUB AND CAFE,A0093251,08/02/2024,POL0339218,3000,N,,N,N
Pendle Borough Council,Housing & Environmental Health,,Housing Impts/Cap Repairs,0104,BOILER HOUSE EARBY LTD,A0093438,29/02/2024,HEH0339710,3300,N,,N,N
Pendle Borough Council,Housing & Environmental Health,,Housing Impts/Cap Repairs,0104,BOILER HOUSE EARBY LTD,A0093438,01/02/2024,HEH0339181,3800,N,,N,N
Pendle Borough Council,Housing & Environmental Health,,Housing Impts/Cap Repairs,0104,BOILER HOUSE EARBY LTD,A0093438,29/02/2024,HEH0339698,3800,N,,N,N
Pendle Borough Council,Housing & Environmental Health,,Housing Impts/Cap Repairs,0104,BOILER HOUSE EARBY LTD,A0093438,08/02/2024,HEH0339238,4200,N,,N,N
Pendle Borough Council,Policy & Commissioning,Supplies and Services,Grant Funding,4737,BUILDING BRIDGES PENDLE,A0094107,15/02/2024,POL0339408,9897.4,N,,N,N
Pendle Borough Council,Economic Growth,Capital Costs,Capital : Payments,CD14,APTUS UTILITIES LIMITED,A0094260,15/02/2024,ECO0339469,4403.95,N,,N,N
Pendle Borough Council,Economic Growth,Capital Costs,Capital : Payments,CD14,APTUS UTILITIES LIMITED,A0094260,22/02/2024,ECO0339468,26338.86,N,,N,N
Pendle Borough Council,Economic Growth,Capital Costs,Capital : Payments,CD14,APTUS UTILITIES LIMITED,A0094260,22/02/2024,ECO0339467,50036.69,N,,N,N
Pendle Borough Council,Revenues Services,Supplies and Services,DSS Collection Fee,4414,MARSTON (HOLDINGS) LIMITED,A0094273,29/02/2024,TRE0339694,22.38,N,,N,N
Pendle Borough Council,Revenues Services,Supplies and Services,DSS Collection Fee,4414,MARSTON (HOLDINGS) LIMITED,A0094273,29/02/2024,TRE0339695,26.18,N,,N,N
Pendle Borough Council,Revenues Services,Supplies and Services,DSS Collection Fee,4414,MARSTON (HOLDINGS) LIMITED,A0094273,08/02/2024,TRE0339298,27.99,N,,N,N
Pendle Borough Council,Housing & Environmental Health,Premises Related Expense,Bldgs : R & M : Abnormal,2002,SOUTHFIELD CONSTRUCTION,A0094294,08/02/2024,HEH0339335,560,N,,N,N
Pendle Borough Council,Housing & Environmental Health,Supplies and Services,Other Expenses,4705,MICHAEL PAGE INTERNATIONAL RECRUITMENT LTD,A0094988,01/02/2024,HEH0339160,742.8,N,,N,N
Pendle Borough Council,Housing & Environmental Health,Supplies and Services,Other Expenses,4705,MICHAEL PAGE INTERNATIONAL RECRUITMENT LTD,A0094988,15/02/2024,HEH0339405,742.8,N,,N,N
Pendle Borough Council,Housing & Environmental Health,Supplies and Services,Other Expenses,4705,MICHAEL PAGE INTERNATIONAL RECRUITMENT LTD,A0094988,15/02/2024,HEH0339406,742.8,N,,N,N
Pendle Borough Council,Housing & Environmental Health,Supplies and Services,Other Expenses,4705,MICHAEL PAGE INTERNATIONAL RECRUITMENT LTD,A0094988,22/02/2024,HEH0339543,742.8,N,,N,N
Pendle Borough Council,Housing & Environmental Health,Supplies and Services,Other Expenses,4705,MICHAEL PAGE INTERNATIONAL RECRUITMENT LTD,A0094988,29/02/2024,HEH0339697,742.8,N,,N,N
Pendle Borough Council,Operational Services,Premises Related Expense,Grounds : R & M : Day to Day : Routine,2101,M W ENVIRONMENTAL,A0095862,29/02/2024,OPS0339761,156.21,N,,N,N
Pendle Borough Council,Operational Services,Premises Related Expense,Grounds : R & M : Day to Day : Routine,2101,M W ENVIRONMENTAL,A0095862,29/02/2024,OPS0339740,75,N,,N,N
Pendle Borough Council,Operational Services,Premises Related Expense,Grounds : R & M : Day to Day : Routine,2101,M W ENVIRONMENTAL,A0095862,08/02/2024,OPS0339308,75,N,,N,N
Pendle Borough Council,Operational Services,Premises Related Expense,Grounds : R & M : Day to Day : Routine,2101,M W ENVIRONMENTAL,A0095862,01/02/2024,OPS0339146,75,N,,N,N
Pendle Borough Council,Operational Services,Premises Related Expense,Grounds : R & M : Day to Day : Routine,2101,M W ENVIRONMENTAL,A0095862,01/02/2024,OPS0339147,174.43,N,,N,N
Pendle Borough Council,Operational Services,Supplies and Services,Grant Funding,4737,COLNE YOUTH ACTION GROUP,A0096017,15/02/2024,OPS0339367,729.96,N,,N,N
Pendle Borough Council,Housing & Environmental Health,Capital Costs,Ren Grant : 1996 Act,CH22,POLLOCK LIFTS,A0096020,01/02/2024,HEH0339098,12346,N,,N,N
Pendle Borough Council,Finance,Agency Staff,Emp : Agency Wages,1004,GATENBY SANDERSON,A0096387,01/02/2024,FIN0339212,5145,N,,N,N
Pendle Borough Council,Finance,Agency Staff,Emp : Agency Wages,1004,GATENBY SANDERSON,A0096387,08/02/2024,FIN0339251,5145,N,,N,N
Pendle Borough Council,Finance,Agency Staff,Emp : Agency Wages,1004,GATENBY SANDERSON,A0096387,15/02/2024,FIN0339441,5145,N,,N,N
Pendle Borough Council,Finance,Agency Staff,Emp : Agency Wages,1004,GATENBY SANDERSON,A0096387,22/02/2024,FIN0339600,5145,N,,N,N
Pendle Borough Council,Finance,Agency Staff,Emp : Agency Wages,1004,GATENBY SANDERSON,A0096387,29/02/2024,FIN0339796,5145,N,,N,N
Pendle Borough Council,Policy & Commissioning,Supplies and Services,Children`s holiday activities,4716,COMMUNITY ARTS BY ZK,A0096410,08/02/2024,POL0339233,2430,N,,N,N
Pendle Borough Council,Housing & Environmental Health,Transfer Payments,Accommodation ,6103,REGENT GUEST HOUSE,A0096417,15/02/2024,HEH0339361,60,N,,N,N
Pendle Borough Council,Housing & Environmental Health,Transfer Payments,Accommodation ,6103,REGENT GUEST HOUSE,A0096417,15/02/2024,HEH0339353,140,N,,N,N
Pendle Borough Council,Housing & Environmental Health,Transfer Payments,Accommodation ,6103,REGENT GUEST HOUSE,A0096417,15/02/2024,HEH0339351,280,N,,N,N
Pendle Borough Council,Housing & Environmental Health,Transfer Payments,Accommodation ,6103,REGENT GUEST HOUSE,A0096417,15/02/2024,HEH0339358,280,N,,N,N
Pendle Borough Council,Housing & Environmental Health,Transfer Payments,Accommodation ,6103,REGENT GUEST HOUSE,A0096417,15/02/2024,HEH0339356,490,N,,N,N
Pendle Borough Council,Housing & Environmental Health,Transfer Payments,Accommodation ,6103,REGENT GUEST HOUSE,A0096417,15/02/2024,HEH0339352,770,N,,N,N
Pendle Borough Council,Housing & Environmental Health,Transfer Payments,Accommodation ,6103,REGENT GUEST HOUSE,A0096417,15/02/2024,HEH0339354,1400,N,,N,N
Pendle Borough Council,Housing & Environmental Health,Transfer Payments,Accommodation ,6103,REGENT GUEST HOUSE,A0096417,15/02/2024,HEH0339355,2240,N,,N,N
Pendle Borough Council,Housing & Environmental Health,Transfer Payments,Accommodation ,6103,REGENT GUEST HOUSE,A0096417,15/02/2024,HEH0339360,3430,N,,N,N
Pendle Borough Council,Housing & Environmental Health,Transfer Payments,Accommodation ,6103,REGENT GUEST HOUSE,A0096417,15/02/2024,HEH0339363,3430,N,,N,N
Pendle Borough Council,Housing & Environmental Health,Transfer Payments,Accommodation ,6103,REGENT GUEST HOUSE,A0096417,15/02/2024,HEH0339357,4410,N,,N,N
Pendle Borough Council,Housing & Environmental Health,Transfer Payments,Accommodation ,6103,REGENT GUEST HOUSE,A0096417,15/02/2024,HEH0339361,4410,N,,N,N
Pendle Borough Council,Housing & Environmental Health,Transfer Payments,Accommodation ,6103,REGENT GUEST HOUSE,A0096417,15/02/2024,HEH0339362,4410,N,,N,N
Pendle Borough Council,Property Services,Premises Related Expense,Gas,2202,E.ON NEXT ENERGY LIMITED,A0096428,01/02/2024,EST0339186,31.49,N,,N,N
Pendle Borough Council,Property Services,Premises Related Expense,Electricity,2203,E.ON NEXT ENERGY LIMITED,A0096428,22/02/2024,EST0339652,28,N,,N,N
Pendle Borough Council,Property Services,Premises Related Expense,Electricity,2203,E.ON NEXT ENERGY LIMITED,A0096428,01/02/2024,EST0339191,70,N,,N,N
Pendle Borough Council,Property Services,Premises Related Expense,Electricity,2203,E.ON NEXT ENERGY LIMITED,A0096428,01/02/2024,EST0339190,52.13,N,,N,N
Pendle Borough Council,Property Services,Premises Related Expense,Electricity,2203,E.ON NEXT ENERGY LIMITED,A0096428,22/02/2024,EST0339647,163.43,N,,N,N
Pendle Borough Council,Property Services,Premises Related Expense,Electricity,2203,E.ON NEXT ENERGY LIMITED,A0096428,22/02/2024,EST0339635,4.2,N,,N,N
Pendle Borough Council,Property Services,Premises Related Expense,Electricity,2203,E.ON NEXT ENERGY LIMITED,A0096428,22/02/2024,EST0339632,15,N,,N,N
Pendle Borough Council,Property Services,Premises Related Expense,Electricity,2203,E.ON NEXT ENERGY LIMITED,A0096428,22/02/2024,EST0339625,31,N,,N,N
Pendle Borough Council,Property Services,Premises Related Expense,Electricity,2203,E.ON NEXT ENERGY LIMITED,A0096428,22/02/2024,EST0339634,31,N,,N,N
Pendle Borough Council,Property Services,Premises Related Expense,Electricity,2203,E.ON NEXT ENERGY LIMITED,A0096428,22/02/2024,EST0339636,31,N,,N,N
Pendle Borough Council,Property Services,Premises Related Expense,Electricity,2203,E.ON NEXT ENERGY LIMITED,A0096428,22/02/2024,EST0339637,31,N,,N,N
Pendle Borough Council,Property Services,Premises Related Expense,Electricity,2203,E.ON NEXT ENERGY LIMITED,A0096428,22/02/2024,EST0339649,31,N,,N,N
Pendle Borough Council,Operational Services,Premises Related Expense,Grounds : R & M : Day to Day : Routine,2101,ABC CLEANING SERVICES (NORTH WEST) LIMITED,A0096473,22/02/2024,OPS0339575,500,N,,N,N
Pendle Borough Council,Operational Services,Premises Related Expense,Grounds : R & M : Day to Day : Routine,2101,ABC CLEANING SERVICES (NORTH WEST) LIMITED,A0096473,01/02/2024,OPS0339159,950,N,,N,N
Pendle Borough Council,Operational Services,Premises Related Expense,Grounds : R & M : Day to Day : Routine,2101,ABC CLEANING SERVICES (NORTH WEST) LIMITED,A0096473,22/02/2024,OPS0339575,600,N,,N,N
Pendle Borough Council,Operational Services,Premises Related Expense,Grounds : R & M : Day to Day : Routine,2101,ABC CLEANING SERVICES (NORTH WEST) LIMITED,A0096473,01/02/2024,OPS0339159,150,N,,N,N
Pendle Borough Council,Operational Services,Premises Related Expense,Grounds : R & M : Day to Day : Routine,2101,ABC CLEANING SERVICES (NORTH WEST) LIMITED,A0096473,01/02/2024,OPS0339159,600,N,,N,N
Pendle Borough Council,Operational Services,Transport Related Expense,Tprt : Repairs : General,3105,BTE PLANT SALES LTD,A0096481,01/02/2024,OPS0339154,15,N,,N,N
Pendle Borough Council,Operational Services,Transport Related Expense,Tprt : Repairs : General,3105,D&J MACHINERY,A0096482,08/02/2024,OPS0339333,65.05,N,,N,N
Pendle Borough Council,Operational Services,Premises Related Expense,Grounds : R & M : Day to Day : Routine,2101,JCB PRICE & SON LTD,A0096491,29/02/2024,OPS0339757,1300,N,,N,N
Pendle Borough Council,Operational Services,Premises Related Expense,Grounds : R & M : Day to Day : Routine,2101,JCB PRICE & SON LTD,A0096491,22/02/2024,OPS0339587,3770,N,,N,N
Pendle Borough Council,Operational Services,Premises Related Expense,Grounds : R & M : Day to Day : Routine,2101,JCB PRICE & SON LTD,A0096491,01/02/2024,OPS0339149,150,N,,N,N
Pendle Borough Council,Operational Services,Premises Related Expense,Bldgs : R & M : Day To Day,2001,BANNISTER HALL LIMITED,A0096507,22/02/2024,OPS0339590,220,N,,N,N
Pendle Borough Council,Operational Services,Supplies and Services,Grant Funding,4737,BANNISTER HALL LIMITED,A0096507,29/02/2024,OPS0339736,1504,N,,N,N
Pendle Borough Council,Operational Services,Supplies and Services,Grant Funding,4737,BANNISTER HALL LIMITED,A0096507,22/02/2024,OPS0339576,2828.45,N,,N,N
Pendle Borough Council,Operational Services,Supplies and Services,Grant Funding,4737,BANNISTER HALL LIMITED,A0096507,29/02/2024,OPS0339736,4599,N,,N,N
Pendle Borough Council,Housing & Environmental Health,Capital Costs,Ren Grant : 1996 Act,CH22,TK ACCESS SOLUTIONS LIMITED,A0096509,01/02/2024,HEH0339108,5935.5,N,,N,N
Pendle Borough Council,Directorate,Supplies and Services,Seminars etc All Costs,4601,JJG CONSULTANCY & EXECUTIVE COACHING SERVICES LTD,A0096573,08/02/2024,DIR0339342,250,N,,N,N
Pendle Borough Council,Policy & Commissioning,Supplies and Services,Grant Funding,4737,HANDMADE PRODUCTIONS CIC,A0096601,15/02/2024,POL0339401,4166.67,N,,N,N
Pendle Borough Council,Finance,Premises Related Expense,Gas,2202,B1 YOUR SPACE LTD,A0096763,29/02/2024,FIN0339693,4043.95,N,,N,N
Pendle Borough Council,Finance,Supplies and Services,Grant Funding,4737,REDACT - PERSONAL DATA,A0096808,09/02/2024,FIN0339371,500,N,,N,N
Pendle Borough Council,Finance,Supplies and Services,Grant Funding,4737,REDACT - PERSONAL DATA,A0096819,09/02/2024,FIN0339372,500,N,,N,N
Pendle Borough Council,Operational Services,Supplies and Services,Sub-Contractors,4007,WHITLEY BROOK PET CREMATORIUM,A0096827,08/02/2024,OPS0339264,126.85,N,,N,N
Pendle Borough Council,Finance,Supplies and Services,Grant Funding,4737,REDACT - PERSONAL DATA,A0096841,09/02/2024,FIN0339391,350,N,,N,N
Pendle Borough Council,Finance,Supplies and Services,Other Expenses,4705,POST OFFICE LTD,A0096844,22/02/2024,FIN0339547,253.5,N,,N,N
Pendle Borough Council,Finance,Supplies and Services,Grant Funding,4737,REDACT - PERSONAL DATA,A0096872,09/02/2024,FIN0339373,500,N,,N,N
Pendle Borough Council,Finance,Supplies and Services,Grant Funding,4737,REDACT - PERSONAL DATA,A0096893,09/02/2024,FIN0339374,500,N,,N,N
Pendle Borough Council,Finance,Supplies and Services,Grant Funding,4737,REDACT - PERSONAL DATA,A0096916,09/02/2024,FIN0339375,500,N,,N,N
Pendle Borough Council,Operational Services,,Paid in the Year,PD03,"KNIGHT, KAVANAGH & PAGE LTD",A0096924,29/02/2024,OPS0339731,12900,N,,N,N
Pendle Borough Council,Operational Services,Capital Costs,Capital : Payments,CD14,THE CDS GROUP,A0096940,15/02/2024,OPS0339434,735,N,,N,N
Pendle Borough Council,Operational Services,Capital Costs,Capital : Payments,CD14,THE CDS GROUP,A0096940,15/02/2024,OPS0339434,4515,N,,N,N
Pendle Borough Council,Economic Growth,Supplies and Services,Grant Funding,4737,NEWGROUND TOGETHER,A0096945,22/02/2024,ECO0339617,16974.11,N,,N,N
Pendle Borough Council,Housing & Environmental Health,Supplies and Services,Other Expenses,4705,REDACT - PERSONAL DATA,A0096961,22/02/2024,HEH0339516,866,N,,N,N
Pendle Borough Council,Finance,Supplies and Services,Grant Funding,4737,REDACT - PERSONAL DATA,A0096978,09/02/2024,FIN0339376,500,N,,N,N
Pendle Borough Council,Finance,Supplies and Services,Grant Funding,4737,REDACT - PERSONAL DATA,A0096980,09/02/2024,FIN0339377,500,N,,N,N
Pendle Borough Council,Economic Growth,Supplies and Services,Consultants Fees,4401,RAISE PARTNERSHIP LIMITED,A0096986,01/02/2024,ECO0339129,3150,N,,N,N
Pendle Borough Council,Economic Growth,Supplies and Services,Consultants Fees,4401,RAISE PARTNERSHIP LIMITED,A0096986,29/02/2024,ECO0339752,3675,N,,N,N
Pendle Borough Council,Economic Growth,Supplies and Services,Consultants Fees,4401,RAISE PARTNERSHIP LIMITED,A0096986,01/02/2024,ECO0339128,137.25,N,,N,N
Pendle Borough Council,Economic Growth,Supplies and Services,Consultants Fees,4401,RAISE PARTNERSHIP LIMITED,A0096986,29/02/2024,ECO0339751,137.25,N,,N,N
Pendle Borough Council,Economic Growth,Supplies and Services,Consultants Fees,4401,RAISE PARTNERSHIP LIMITED,A0096986,29/02/2024,ECO0339754,1250,N,,N,N
Pendle Borough Council,Economic Growth,Supplies and Services,Consultants Fees,4401,RAISE PARTNERSHIP LIMITED,A0096986,01/02/2024,ECO0339127,9652.5,N,,N,N
Pendle Borough Council,Economic Growth,Supplies and Services,Consultants Fees,4401,RAISE PARTNERSHIP LIMITED,A0096986,29/02/2024,ECO0339755,9652.5,N,,N,N
Pendle Borough Council,Economic Growth,Capital Costs,Consultancy,CE45,RAISE PARTNERSHIP LIMITED,A0096986,01/02/2024,ECO0339130,1950,N,,N,N
Pendle Borough Council,Economic Growth,Capital Costs,Consultancy,CE45,RAISE PARTNERSHIP LIMITED,A0096986,29/02/2024,ECO0339753,1950,N,,N,N
Pendle Borough Council,Finance,Supplies and Services,Grant Funding,4737,REDACT - PERSONAL DATA,A0097003,09/02/2024,FIN0339378,500,N,,N,N
Pendle Borough Council,Operational Services,Transport Related Expense,Tprt : Repairs : General,3105,SIXIS Technology Ltd,A0097018,08/02/2024,OPS0339306,458.8,N,,N,N
Pendle Borough Council,Operational Services,Transport Related Expense,Tprt : Repairs : General,3105,SIXIS Technology Ltd,A0097018,08/02/2024,OPS0339336,458.8,N,,N,N
Pendle Borough Council,Operational Services,Transport Related Expense,Tprt : Annual Hire Charge,3601,CAR HIRE DAY OF SWANSEA LTD,A0097023,15/02/2024,OPS0339435,386.57,N,,N,N
Pendle Borough Council,Operational Services,Transport Related Expense,Tprt : Annual Hire Charge,3601,CAR HIRE DAY OF SWANSEA LTD,A0097023,15/02/2024,OPS0339436,1716.22,N,,N,N
Pendle Borough Council,Economic Growth,Supplies and Services,Other Expenses,4705,EARBY EVENTS GROUP,A0097025,22/02/2024,ECO0339612,1200,N,,N,N
Pendle Borough Council,Directorate,Capital Costs,Miscellaneous,CE4F,THOMPSON REMOVALS,A0097153,01/02/2024,DIR0338882,2031.25,N,,N,N
Pendle Borough Council,Operational Services,Capital Costs,Capital : Purchase,CD01,GILESKIPS,A0097167,01/02/2024,OPS0339152,2995,N,,N,N
Pendle Borough Council,Policy & Commissioning,Supplies and Services,Children`s holiday activities,4716,JAM CODING PENDLE,A0097169,22/02/2024,POL0339500,1080,N,,N,N
Pendle Borough Council,Economic Growth,Supplies and Services,Consultants Fees,4401,DCR SURVEYING AND ESTIMATING SERVICES LTD,A0097173,29/02/2024,ECO0339748,1125,N,,N,N
Pendle Borough Council,Finance,Capital Costs,Capital: Design Fees,cd53,DCR SURVEYING AND ESTIMATING SERVICES LTD,A0097173,08/02/2024,FIN0339348,3748.77,N,,N,N
Pendle Borough Council,Finance,Capital Costs,Capital: Design Fees,cd53,DCR SURVEYING AND ESTIMATING SERVICES LTD,A0097173,01/02/2024,FIN0339214,934.12,N,,N,N
Pendle Borough Council,Finance,Supplies and Services,Grant Funding,4737,REDACT - PERSONAL DATA,A0097338,09/02/2024,FIN0339380,150,N,,N,N
Pendle Borough Council,Finance,Supplies and Services,Grant Funding,4737,REDACT - PERSONAL DATA,A0097338,09/02/2024,FIN0339379,500,N,,N,N
Pendle Borough Council,Finance,Supplies and Services,Grant Funding,4737,REDACT - PERSONAL DATA,A0097339,09/02/2024,FIN0339381,350,N,,N,N
Pendle Borough Council,Housing & Environmental Health,Supplies and Services,Consultants Fees,4401,SHEMUEL SHEIKH,A0097386,29/02/2024,HEH0339792,6500,N,,N,N
Pendle Borough Council,Operational Services,Premises Related Expense,Bldgs : R & M : Day To Day,2001,E L PARKER LTD,A0097404,08/02/2024,OPS0339338,800,N,,N,N
Pendle Borough Council,Operational Services,Premises Related Expense,Bldgs : R & M : Day To Day,2001,E L PARKER LTD,A0097404,22/02/2024,OPS0339589,1200,N,,N,N
Pendle Borough Council,Housing & Environmental Health,Supplies and Services,Other Expenses,4705,LADY  BELL LTD,A0097412,01/02/2024,HEH0339162,999,N,,N,N
Pendle Borough Council,Finance,Supplies and Services,Grant Funding,4737,REDACT - PERSONAL DATA,A0097415,09/02/2024,FIN0339382,500,N,,N,N
Pendle Borough Council,Finance,Capital Costs,Capital: Construction: Conversion/Refu,cd57,READSTONE CONSTRUCTION,A0097418,29/02/2024,FIN0339799,150970.58,N,,N,N
Pendle Borough Council,Finance,Capital Costs,Capital: Construction: Conversion/Refu,CD57,READSTONE CONSTRUCTION,A0097418,15/02/2024,FIN0339498,161613.42,N,,N,N
Pendle Borough Council,Finance,Supplies and Services,Grant Funding,4737,REDACT - PERSONAL DATA,A0097419,09/02/2024,FIN0339386,350,N,,N,N
Pendle Borough Council,Economic Growth,Capital Costs,Capital : Payments,cd14,AXIS PROPERTY CONSULTANCY LLP,A0097431,22/02/2024,ECO0339604,8512.5,N,,N,N
Pendle Borough Council,Finance,Capital Costs,Loans (E.H.C.),CD24,PENBROOK DEVELOPMENTS LIMITED,A0097436,05/02/2024,FIN0339964,32505,N,,N,N
Pendle Borough Council,Housing & Environmental Health,Supplies and Services,Other Expenses,4705,SHP GROUP LIMITED,A0097438,15/02/2024,HEH0339477,780,N,,N,N
Pendle Borough Council,Housing & Environmental Health,Supplies and Services,Other Expenses,4705,SHP GROUP LIMITED,A0097438,29/02/2024,HEH0339618,780,N,,N,N
Pendle Borough Council,Housing & Environmental Health,Supplies and Services,Other Expenses,4705,SHP GROUP LIMITED,A0097438,29/02/2024,HEH0339774,780,N,,N,N
Pendle Borough Council,Housing & Environmental Health,Supplies and Services,Other Expenses,4705,SHP GROUP LIMITED,A0097438,15/02/2024,HEH0339464,866,N,,N,N
Pendle Borough Council,Housing & Environmental Health,Supplies and Services,Other Expenses,4705,SHP GROUP LIMITED,A0097438,15/02/2024,HEH0339456,866.66,N,,N,N
Pendle Borough Council,Housing & Environmental Health,Supplies and Services,Other Expenses,4705,SHP GROUP LIMITED,A0097438,15/02/2024,HEH0339465,866.66,N,,N,N
Pendle Borough Council,Housing & Environmental Health,Supplies and Services,Other Expenses,4705,SHP GROUP LIMITED,A0097438,01/02/2024,HEH0339110,953.32,N,,N,N
Pendle Borough Council,Housing & Environmental Health,Supplies and Services,Other Expenses,4705,SHP GROUP LIMITED,A0097438,08/02/2024,HEH0339299,953.32,N,,N,N
Pendle Borough Council,Operational Services,Transport Related Expense,Tprt : Repairs : General,3105,PETER`S LANDSCAPING & GARDEN SERVICE,A0097442,15/02/2024,OPS0339427,190,N,,N,N
Pendle Borough Council,Operational Services,Supplies and Services,Sub-Contractors,4007,PETER`S LANDSCAPING & GARDEN SERVICE,A0097442,15/02/2024,OPS0339427,450,N,,N,N
Pendle Borough Council,Operational Services,Supplies and Services,Sub-Contractors,4007,PETER`S LANDSCAPING & GARDEN SERVICE,A0097442,15/02/2024,OPS0339424,500,N,,N,N
Pendle Borough Council,Finance,Supplies and Services,Grant Funding,4737,REDACT - PERSONAL DATA,A0097448,09/02/2024,FIN0339387,350,N,,N,N
Pendle Borough Council,Finance,Capital Costs,Capital: Design Fees,CD53,SURE DESIGN LIMITED,A0097460,15/02/2024,FIN0339497,3190,N,,N,N
Pendle Borough Council,Human Resources,Supplies and Services,Other Expenses,4705,AVC WISE LTD,A0097461,01/02/2024,PER0339112,173.21,N,,N,N
Pendle Borough Council,Finance,Capital Costs,Capital: Construction: Conversion/Refu,CD57,BAILEY CONTRACTS LTD,A0097470,08/02/2024,FIN0339211,30202.95,N,,N,N
Pendle Borough Council,Legal & Democratic Services,Supplies and Services,Meeting Expenses,4610,BELLYFLOP TV LTD,A0097473,08/02/2024,LAD0339232,495,N,,N,N
Pendle Borough Council,Policy & Commissioning,Supplies and Services,Consultants Fees,4401,ANDY CRIBBIN,A0097483,08/02/2024,POL0339221,5000,N,,N,N
Pendle Borough Council,Legal & Democratic Services,,Fees Income : Non-VATable,9302,REDACT - PERSONAL DATA,A0097495,01/02/2024,LAD0339096,680,N,,N,N
Pendle Borough Council,Economic Growth,Supplies and Services,Other Expenses,4705,CARERS LINK LANCASHIRE,A0097497,01/02/2024,ECO0339206,3000,N,,N,N
Pendle Borough Council,Housing & Environmental Health,,Housing Impts/Cap Repairs,0104,SPENCER JORDAN PLUMBING AND HEATING,A0097517,22/02/2024,HEH0339622,1550,N,,N,N
Pendle Borough Council,Operational Services,Premises Related Expense,Grounds : R & M : Day to Day : Routine,2101,REDACT - PERSONAL DATA,A0097519,29/02/2024,OPS0339744,44.66,N,,N,N
Pendle Borough Council,Finance,Supplies and Services,Grant Funding,4737,REDACT - PERSONAL DATA,A0097530,09/02/2024,FIN0339388,350,N,,N,N
Pendle Borough Council,Finance,Supplies and Services,Grant Funding,4737,REDACT - PERSONAL DATA,A0097531,09/02/2024,FIN0339389,350,N,,N,N
Pendle Borough Council,Finance,Supplies and Services,Grant Funding,4737,REDACT - PERSONAL DATA,A0097532,09/02/2024,FIN0339390,350,N,,N,N
Pendle Borough Council,Directorate,Capital Costs,Capital:Relocation Payments,CD04,CRAIG ATKINSON REMOVALS LTD,A0097544,29/02/2024,DIR0339454,700,N,,N,N
Pendle Borough Council,Housing & Environmental Health,Supplies and Services,Other Expenses,4705,REDACT - PERSONAL DATA,A0097545,08/02/2024,HEH0339208,1400,N,,N,N
Pendle Borough Council,Policy & Commissioning,Indirect Employee Expenses,Staff Awards,1238,TROPHYSTORE.co.uk LIMITED,A0097546,08/02/2024,POL0339292,216.63,N,,N,N
Pendle Borough Council,Operational Services,Supplies and Services,Expenditure : Materials,0002,R & J BUILDERS HARDWARE LTD,A0097547,22/02/2024,OPS0339571,95.76,N,,N,N
Pendle Borough Council,Finance,Supplies and Services,Grant Funding,4737,REDACT - PERSONAL DATA,A0097548,09/02/2024,FIN0339383,125,N,,N,N
Pendle Borough Council,Finance,Supplies and Services,Grant Funding,4737,REDACT - PERSONAL DATA,A0097548,09/02/2024,FIN0339384,125,N,,N,N
Pendle Borough Council,Finance,Supplies and Services,Grant Funding,4737,REDACT - PERSONAL DATA,A0097548,09/02/2024,FIN0339383,350,N,,N,N
Pendle Borough Council,Finance,Supplies and Services,Grant Funding,4737,REDACT - PERSONAL DATA,A0097548,09/02/2024,FIN0339384,350,N,,N,N
Pendle Borough Council,Finance,Supplies and Services,Grant Funding,4737,REDACT - PERSONAL DATA,A0097548,09/02/2024,FIN0339385,350,N,,N,N
Pendle Borough Council,Finance,Supplies and Services,Grant Funding,4737,REDACT - PERSONAL DATA,A0097549,09/02/2024,FIN0339392,125,N,,N,N
Pendle Borough Council,Finance,Supplies and Services,Grant Funding,4737,REDACT - PERSONAL DATA,A0097549,09/02/2024,FIN0339393,125,N,,N,N
Pendle Borough Council,Finance,Supplies and Services,Grant Funding,4737,REDACT - PERSONAL DATA,A0097549,09/02/2024,FIN0339392,350,N,,N,N
Pendle Borough Council,Finance,Supplies and Services,Grant Funding,4737,REDACT - PERSONAL DATA,A0097549,09/02/2024,FIN0339393,350,N,,N,N
Pendle Borough Council,Finance,Supplies and Services,Grant Funding,4737,REDACT - PERSONAL DATA,A0097549,09/02/2024,FIN0339394,350,N,,N,N
Pendle Borough Council,Finance,Supplies and Services,Grant Funding,4737,REDACT - PERSONAL DATA,A0097550,08/02/2024,FIN0339316,75,N,,N,N
Pendle Borough Council,Finance,Supplies and Services,Other Expenses,4705,REDACT - PERSONAL DATA,A0097552,08/02/2024,FIN0339350,90,N,,N,N
Pendle Borough Council,Economic Growth,Capital Costs,Capital : Payments,CD14,STRATEGIC LEISURE LTD,A0097555,29/02/2024,ECO0339747,7631.52,N,,N,N
Pendle Borough Council,Housing & Environmental Health,Capital Costs,Ren Grant : 1996 Act,CH22,REDACT - PERSONAL DATA,A0097556,15/02/2024,HEH0339457,7273.68,N,,N,N
Pendle Borough Council,Housing & Environmental Health,Supplies and Services,Other Expenses,4705,FREEDOM PROPERTY MANAGEMENT,A0097557,15/02/2024,HEH0339443,250,N,,N,N
Pendle Borough Council,Housing & Environmental Health,Supplies and Services,Other Expenses,4705,RPC LETTINGS,A0097558,15/02/2024,HEH0339466,600,N,,N,N
Pendle Borough Council,Housing & Environmental Health,Supplies and Services,Other Expenses,4705,REDACT - PERSONAL DATA,A0097559,15/02/2024,HEH0339478,900,N,,N,N
Pendle Borough Council,Economic Growth,Supplies and Services,Other Expenses,4705,THE TUESDAY GROUP,A0097560,22/02/2024,ECO0339616,1000,N,,N,N
Pendle Borough Council,Housing & Environmental Health,Supplies and Services,EFM : Other Equipment,4003,MEARLEY VETERINARY GROUP,A0097566,22/02/2024,HEH0339548,134.14,N,,N,N
Pendle Borough Council,Housing & Environmental Health,Supplies and Services,EFM : Other Equipment,4003,MEARLEY VETERINARY GROUP,A0097566,22/02/2024,HEH0339549,295.47,N,,N,N
Pendle Borough Council,Finance,Supplies and Services,Grant Funding,4737,REDACT - PERSONAL DATA,A0097567,22/02/2024,FIN0339593,65,N,,N,N
Pendle Borough Council,Finance,Supplies and Services,Grant Funding,4737,REDACT - PERSONAL DATA,A0097567,22/02/2024,FIN0339592,75,N,,N,N
Pendle Borough Council,Economic Growth,Supplies and Services,Grant Funding,4737,RTC NORTH LTD,A0097571,22/02/2024,ECO0339619,11103.84,N,,N,N
Pendle Borough Council,Housing & Environmental Health,Capital Costs,Ren Grant : 1996 Act,CH22,REDACT - PERSONAL DATA,A0097580,29/02/2024,HEH0339768,3500,N,,N,N
Pendle Borough Council,Finance,Supplies and Services,Grant Funding,4737,REDACT - PERSONAL DATA,A0097581,29/02/2024,FIN0339785,75,N,,N,N
Pendle Borough Council,Finance,Transfer Payments,Storage & Homelessness prevention,6104,REDACT - PERSONAL DATA,A0097588,26/02/2024,FIN0339970,158,N,,N,N
Pendle Borough Council,Finance,Transfer Payments,Storage & Homelessness prevention,6104,REDACT - PERSONAL DATA,A0097588,14/02/2024,FIN0339967,233.45,N,,N,N
Pendle Borough Council,Finance,Capital Costs,Capital:Relocation Payments,cd04,JMW SOLICITORS LLP,A0097594,07/02/2024,FIN0339971,240000,N,,N,N
